Workbook

Sheet Accueil
B2: =TODAY() -> 2016-01-25 | C2: g.bearzatto | I2: Salarié | J2: NATURE | K2: Formule
B3: Bonjour | C3: =INDEX(Personnel!$A$4:$C$51,MATCH($C$2,Personnel!$C$4:$C$51,0),1) -> BEARZATTO Giovanni | D3: =INDEX(Personnel!$A$4:$C$51,MATCH($C$2,Personnel!$C$4:$C$51,0),1) -> BEARZATTO Giovanni | E3: =INDEX(Personnel!$A$4:$C$51,MATCH($C$2,Personnel!$C$4:$C$51,0),1) -> BEARZATTO Giovanni | I3: =SALARIE -> BEARZATTO Giovanni | J3: CP | K3: =AND(Saisies!C4>=Accueil!C6,Saisies!E4<=Accueil!E6) -> FALSE
B4: Situation à ce jour sauf erreur ou omission | I4: =SALARIE -> BEARZATTO Giovanni | J4: RTT | K4: =AND(Saisies!C4>=RTTdeb,Saisies!E4<=RTTfin) -> FALSE | U4: Demande | X4: CP
B6: Congés Payés période du | C6: =CPdeb -> 2015-06-01 | D6: au | E6: =CPfin -> 2016-05-31 | U6: Nom & Prénom : | W6: =SALARIE -> BEARZATTO Giovanni | Y6: Date demande | AA6: =TODAY() -> 2016-01-25
I7: Salarié | J7: Date demande | K7: début | L7: J1 | M7: fin | N7: J2 | O7: Nature | P7: Statut | Q7: NB jours | R7: mois | S7: Remarque
B8: Solde Période précédente | C8: =IF(SALARIE<>"",VLOOKUP(SALARIE,PERSONNEL[],8,FALSE),"") -> 1.5 | I8: BEARZATTO Giovanni | J8: 2014-12-01 | K8: 2015-01-02 | L8: 0 | M8: 2015-01-02 | N8: 0 | O8: RTT | P8: Acceptée | Q8: 1 | R8: 2015/01 | S8: RTT Direction | U8: Période demandée du : | Z8: inclus | AB8: =IF(OR(Y8="Matin",Y8=""),0,0.5) -> 0
B9: CP pour ancienneté | C9: =IF(SALARIE<>"",VLOOKUP(SALARIE,PERSONNEL[],9,FALSE),"") -> 3 | I9: BEARZATTO Giovanni | J9: 2015-01-07 | K9: 2015-02-19 | L9: 0 | M9: 2015-02-19 | N9: 0 | O9: RTT | P9: Acceptée | Q9: 1 | R9: 2015/02 | S9: 0 | Y9: N'utiliser ces cases que pour des 1/2 journées
B10: Acquis au 31/05/2015 (N-1) | C10: =IF(SALARIE<>"",VLOOKUP(SALARIE,PERSONNEL[],10,FALSE)-C8-C9,"") -> 24.96 | E10: SOLDES | I10: BEARZATTO Giovanni | J10: 2015-01-07 | K10: 2015-03-04 | L10: 0 | M10: 2015-03-04 | N10: 0 | O10: RTT | P10: Acceptée | Q10: 1 | R10: 2015/03 | S10: 0 | U10: au : | Z10: inclus | AB10: =IF(OR(Y10="Après-midi",Y10=""),0,0.5) -> 0
B11: TOTAL CP à prendre sur la période | C11: =IF(SALARIE<>"",C10+C9+C8,"") -> 29.46 | I11: BEARZATTO Giovanni | J11: 2015-05-04 | K11: 2015-05-15 | L11: 0 | M11: 2015-05-15 | N11: 0 | O11: RTT | P11: Acceptée | Q11: 1 | R11: 2015/05
B12: NBj CP Posés et Acceptés | C12: =SUM(SUMIFS(Tabsaisies[NB jours],Tabsaisies[Début],">="&CPdeb,Tabsaisies[Début],"<="&CPfin,Tabsaisies[Salarié],"="&SALARIE,Tabsaisies[Nature],"=CP",Tabsaisies[Statut],{"Annulée";"Acceptée"})) -> 21 | E12: =IF(SALARIE<>"",C11-C12,"") -> 8.46 | I12: BEARZATTO Giovanni | J12: 2015-06-08 | K12: 2015-06-22 | L12: 0 | M12: 2015-06-22 | N12: 0 | O12: CP | P12: Acceptée | Q12: 1 | R12: 2015/06 | S12: Recup CP du 01/06/2015 annulé | U12: MOTIF ---> (uniquement si Abs. Convention) | Z12: soit : | AA12: =IF(OR(W8="",W10=""),0,IF(AND(X4<>"CP",X4<>"RTT",W8<>""),0,IF(U4="Demande",NETWORKDAYS.INTL(W8,W10,1,JFERIES)-AB8-AB10,(NETWORKDAYS.INTL(W8,W10,1,JFERIES)-AB8-AB10)*-1))) -> 0 | AB12: jours
B13: CP en attente de réponse | C13: =SUMIFS(Tabsaisies[NB jours],Tabsaisies[Début],">="&CPdeb,Tabsaisies[Début],"<="&CPfin,Tabsaisies[Salarié],"="&SALARIE,Tabsaisies[Nature],"=CP",Tabsaisies[Statut],"=En Attente") -> 0 | E13: =IF(C13>0,E12-C13,"") ->  | I13: BEARZATTO Giovanni | J13: 2015-06-09 | K13: 2015-07-13 | L13: 0 | M13: 2015-07-13 | N13: 0 | O13: RTT | P13: Acceptée | Q13: 1 | R13: 2015/07
B14: Pour info, acquis depuis le 01/06/2015 | C14: =IF(SALARIE<>"",VLOOKUP(SALARIE,PERSONNEL[],11,FALSE),"") -> 14.56 | E14: =IF(SALARIE<>"",E12+C14,"") -> 23.02 | I14: BEARZATTO Giovanni | J14: 2015-07-09 | K14: 2015-08-17 | L14: 0 | M14: 2015-08-31 | N14: 0 | O14: CP | P14: Acceptée | Q14: 11 | R14: 2015/08 | S14: Congés été 2015 | U14: Nouveau solde prévisonnel (hors demandes en cours) : | Y14: =IF(AA12=0,"",IF(X4="CP",E12-AA12,#REF!-AA12)) -> 
I15: BEARZATTO Giovanni | J15: 2015-07-09 | K15: 2015-09-01 | L15: 0 | M15: 2015-09-04 | N15: 0 | O15: CP | P15: Acceptée | Q15: 4 | R15: 2015/09 | S15: Congés été 2015
I16: BEARZATTO Giovanni | J16: 2015-09-14 | K16: 2015-10-12 | L16: 0 | M16: 2015-10-12 | N16: 0 | O16: CP | P16: Acceptée | Q16: 1 | R16: 2015/10 | U16: Destinataire : | W16: g.bearzatto@lse.fr
I17: BEARZATTO Giovanni | J17: 2015-11-26 | K17: 2015-12-11 | L17: 0 | M17: 2015-12-11 | N17: 0 | O17: CP | P17: Acceptée | Q17: 1 | R17: 2015/12 | U17: Depuis et Copie à : | W17: =IF(SALARIE<>"",VLOOKUP(SALARIE,PERSONNEL[],3,FALSE)&"@lse.fr","") -> g.bearzatto@lse.fr
I18: BEARZATTO Giovanni | J18: 2015-11-26 | K18: 2015-12-31 | L18: 0 | M18: 2016-01-04 | N18: 0 | O18: CP | P18: Acceptée | Q18: 2 | R18: 2016/01
I19: BEARZATTO Giovanni | J19: 2016-01-05 | K19: 2016-01-29 | L19: 0 | M19: 2016-01-29 | N19: 0 | O19: CP | P19: Acceptée | Q19: 1 | R19: 2016/01
A21: * | B21: =INDEX(Personnel!$A$4:$C$51,MATCH($C$2,Personnel!$C$4:$C$51,0),1) -> BEARZATTO Giovanni | T21: * | U21: =W6 -> BEARZATTO Giovanni | V21: =AA6 -> 2016-01-25 | W21: =W8 -> 00:00:00 | X21: =AB8 -> 0 | Y21: =W10 -> 00:00:00 | Z21: =AB10 -> 0 | AA21: =X4 -> CP | AB21: En Attente | AC21: =AA12 -> 0 | AD21: =YEAR(W21)&"/"&TEXT(W21,"mm") -> 1900/01 | AF21: =Y14 -> 

Sheet Données
A1: ANNEE EN COURS | B1: 2015
A2: CP du | B2: =DATE(ANNEE_LSE,6,1) -> 2015-06-01 | C2: au | D2: =DATE(ANNEE_LSE+1,5,31) -> 2016-05-31
A3: RTT du | B3: =DATE(ANNEE_LSE,1,1) -> 2015-01-01 | C3: au | D3: =DATE(ANNEE_LSE,12,31) -> 2015-12-31
A5: JOURS FERIES | D5: Nature Absences | G5: NO | H5: Michel Loyer <m.loyer@lse.fr>;Giovanni Bearzatto <g.bearzatto@lse.fr>
A6: Jour de l'an | B6: 2013-01-01 | D6: CP | G6: IDF | H6: Giovanni Bearzatto <g.bearzatto@lse.fr>
A7: Lundi de Pâques | B7: 2013-04-01 | D7: RTT | G7: SUD | H7: Giovanni Bearzatto <g.bearzatto@lse.fr>
A8: Fête du Travail | B8: 2013-05-01 | D8: Convention
A9: 8 mai 1945 | B9: 2013-05-08 | D9: CP sans solde
A10: Jeudi de l'Ascension | B10: 2013-05-09 | D10: RTD Recup
A11: Lundi de Pentecôte | B11: 2013-05-20
A12: Fête Nationale | B12: 2013-07-14
A13: Assomption | B13: 2013-08-15
A14: La Toussaint | B14: 2013-11-01
A15: Armistice | B15: 2013-11-11
A16: Noël | B16: 2013-12-25
A17: Jour de l'an | B17: 2014-01-01
A18: Lundi de Pâques | B18: 2014-04-21
A19: Fête du Travail | B19: 2014-05-01
A20: 8 mai 1945 | B20: 2014-05-08
A21: Jeudi de l'Ascension | B21: 2014-05-29
A22: Lundi de Pentecôte
A23: Fête Nationale | B23: 2014-07-14
A24: Assomption | B24: 2014-08-15
A25: La Toussaint | B25: 2014-11-01
A26: Armistice | B26: 2014-11-11
A27: Noël | B27: 2014-12-25
A28: Jour de l'an | B28: 2015-01-01
A29: Lundi de Pâques | B29: 2015-04-06
A30: Fête du Travail | B30: 2015-05-01
A31: 8 mai 1945 | B31: 2015-05-08
A32: Jeudi de l'Ascension | B32: 2015-05-14
A33: Lundi de Pentecôte | B33: 2015-05-25
A34: Fête Nationale | B34: 2015-07-14
A35: Assomption | B35: 2015-08-15
A36: La Toussaint | B36: 2015-11-01
A37: Armistice | B37: 2015-11-11
A38: Noël | B38: 2015-12-25
A39: Jour de l'an | B39: 2016-01-01
A40: Lundi de Pâques | B40: 2016-03-28
A41: Fête du Travail | B41: 2016-05-01
A42: 8 mai 1945 | B42: 2016-05-08
A43: Jeudi de l'Ascension | B43: 2016-05-05
A44: Lundi de Pentecôte | B44: 2016-05-16
A45: Fête Nationale | B45: 2016-07-14
A46: Assomption | B46: 2016-08-15
A47: La Toussaint | B47: 2016-11-01
A48: Armistice | B48: 2016-11-11
A49: Noël | B49: 2016-12-25

Sheet STATS CP
A1: Nature | B1: CP
A2: Statut | B2: (Plusieurs éléments)
A4: Somme de NB jours | B4: Mois
A5: Étiquettes de lignes | B5: 2014/06 | C5: 2014/07 | D5: 2014/08 | E5: 2014/09 | F5: 2014/10 | G5: 2014/11 | H5: 2014/12 | I5: 2015/01 | J5: 2015/02 | K5: 2015/03 | L5: 2015/04 | M5: 2015/05 | N5: Total général
A6: BEARZATTO Giovanni | C6: 1 | D6: 10 | E6: 6 | J6: 6 | K6: 2 | M6: 1 | N6: 26
A7: BERTHE Magali | D7: 9 | G7: 1.5 | I7: 1 | M7: 1 | N7: 12.5
A8: CHEVALIER Yohan | C8: 4 | D8: 5 | M8: 2 | N8: 11
A9: COUTANT Jean Paul | B9: 1 | D9: 15 | K9: 1 | L9: 5 | M9: 1 | N9: 23
A10: DEREPPE Bruno | C10: 4 | D10: 10 | E10: 5 | K10: 5 | M10: 4 | N10: 28
A11: DREVON Alain | C11: 4 | D11: 6 | E11: 5 | J11: 5 | M11: 5.5 | N11: 25.5
A12: DREZET Olivier | B12: 1 | D12: 16 | E12: 4 | G12: 1 | H12: 1 | L12: 4 | M12: 1 | N12: 28
A13: GIRAUDON Alain | B13: 1 | D13: 20 | K13: 5 | N13: 26
A14: GUERIN Viviane | B14: 1 | C14: 1 | D14: 17 | E14: 1 | M14: 5 | N14: 25
A15: GUINOT Nathalie | D15: 15 | J15: 5 | L15: 2 | M15: 3 | N15: 25
A16: GUIOT Fabien | D16: 15 | H16: 1 | L16: 4 | M16: 5 | N16: 25
A17: HAUTEBRANC Alexis | C17: 4 | D17: 6 | E17: 5 | F17: 1 | H17: 0.5 | K17: 2.5 | M17: 6 | N17: 25
A18: HEMLER Christelle | C18: 4 | D18: 6 | E18: 5 | H18: 0.5 | K18: 2 | L18: 2 | M18: 6 | N18: 25.5
A19: KADEM Christophe | D19: 15 | H19: 1 | K19: 5 | M19: 4.5 | N19: 25.5
A20: LANGE Sébastien | I20: 1 | M20: 0.5 | N20: 1.5
A21: LAZZARO Fabien | C21: 4 | D21: 11 | N21: 15
A22: LEDANT Charles | D22: 17 | G22: 1 | I22: 2 | K22: 3 | L22: 1 | M22: 5 | N22: 29
A23: LOCATELLI Bruno | D23: 5 | E23: 11 | K23: 5 | L23: 1 | M23: 5 | N23: 27
A24: LOYER Michel | B24: 1 | C24: 7 | D24: 10 | E24: 1 | F24: 1 | H24: 1 | K24: 2 | M24: 3 | N24: 26
A25: MARAIS Bernard | D25: 9 | F25: 10 | H25: 1 | I25: 1 | J25: 5 | M25: 1 | N25: 27
A26: MARZOUK Sami | D26: 20 | H26: 1 | L26: 8 | N26: 29
A27: MINAKIAN Mathilde | C27: 1 | D27: 15 | G27: 1 | I27: 1 | N27: 18
A28: PLONQUET Christian | D28: 17 | E28: 5 | F28: 0 | G28: 2 | N28: 24
A29: POMMERELL Patrick | D29: 15 | J29: 2 | L29: 4 | M29: 0 | N29: 21
A30: PONS Olivier | C30: 5 | D30: 10 | K30: 7 | N30: 22
A31: ROBIN Kevin | C31: 1 | D31: 15 | G31: 1 | H31: 1.5 | I31: 1 | J31: 2 | K31: 1 | L31: 1.5 | N31: 24
A32: SANTUCCI Lionel | D32: 15 | E32: 1 | H32: 1 | K32: 2 | L32: 3 | M32: 8 | N32: 30
A33: SIODMAK Eric | D33: 14 | E33: 2 | H33: 1 | J33: 5 | K33: 0 | M33: 4 | N33: 26
A34: SOUCHET Alain | E34: 20 | L34: 2.5 | M34: 7 | N34: 29.5
A35: TAQUET Alain | B35: 2 | D35: 14 | E35: 1 | K35: 4 | M35: 5.5 | N35: 26.5
A36: VAUTRAIN Franck | D36: 15 | L36: 5 | M36: 5 | N36: 25
A37: Total général | B37: 7 | C37: 40 | D37: 367 | E37: 72 | F37: 12 | G37: 7.5 | H37: 10.5 | I37: 7 | J37: 30 | K37: 46.5 | L37: 43 | M37: 89 | N37: 731.5

Sheet STATS RTT
A1: Nature | B1: RTT
A2: Statut | B2: Acceptée
A4: Somme de NB jours | B4: Mois
A5: Étiquettes de lignes | B5: 2015/01 | C5: 2015/02 | D5: 2015/03 | E5: 2015/04 | F5: 2015/05 | G5: 2015/06 | H5: 2015/07 | I5: Total général
A6: BEARZATTO Giovanni | B6: 1 | C6: 1 | D6: 1 | F6: 1 | I6: 4
A7: COUTANT Jean Paul | B7: 1 | D7: 2 | F7: 1 | I7: 4
A8: DEREPPE Bruno | B8: 1 | F8: 1 | I8: 2
A9: DREVON Alain | B9: 1 | E9: 3 | I9: 4
A10: DREZET Olivier | B10: 1 | C10: 1 | D10: 1.5 | F10: 0.5 | I10: 4
A11: GIRAUDON Alain | B11: 1 | C11: 1 | D11: 0.5 | F11: 1 | H11: 1 | I11: 4.5
A12: GUERIN Viviane | B12: 2 | C12: 1 | G12: 1 | H12: 1 | I12: 5
A13: GUINOT Nathalie | B13: 1 | I13: 1
A14: GUIOT Fabien | B14: 1 | C14: 1 | I14: 2 | O14: 4
A15: HAUTEBRANC Alexis | B15: 1 | I15: 1
A16: HEMLER Christelle | B16: 1 | C16: 0.5 | I16: 1.5
A17: KADEM Christophe | B17: 1 | D17: 2 | I17: 3
A18: LAZZARO Fabien | B18: 1 | I18: 1
A19: LEDANT Charles | B19: 1 | E19: 1 | I19: 2
A20: LOCATELLI Bruno | B20: 3 | G20: 1 | I20: 4
A21: LOYER Michel | B21: 1 | D21: 1 | F21: 1 | I21: 3
A22: MARZOUK Sami | B22: 1 | I22: 1
A23: POMMERELL Patrick | B23: 1 | D23: 0.5 | E23: 0.5 | G23: 1 | I23: 3
A24: PONS Olivier | B24: 2 | C24: 1 | F24: 1 | I24: 4
A25: SANTUCCI Lionel | B25: 2 | F25: 2 | I25: 4
A26: SIODMAK Eric | B26: 1 | I26: 1
A27: SOUCHET Alain | B27: 1 | I27: 1
A28: TAQUET Alain | B28: 1 | C28: 1 | D28: 1 | H28: 1 | I28: 4
A29: VAUTRAIN Franck | B29: 2 | C29: 1 | D29: 1 | E29: 0.5 | I29: 4.5
A30: Total général | B30: 30 | C30: 8.5 | D30: 10.5 | E30: 5 | F30: 8.5 | G30: 3 | H30: 3 | I30: 68.5

Sheet Saisies
A1: PENSER A CLIQUER SUR SAUVER | I1: Liste des demandes au | J1: =TODAY() -> 2016-01-25
H2: Sous-total | I2: 2526.5
A3: Salarié | B3: Date demande | C3: Début | D3: J1 | E3: Fin | F3: J2 | G3: Nature | H3: Statut | I3: NB jours | J3: mois | K3: Remarque | L3: verif solde
A4: SANTUCCI Lionel | B4: 2013-06-04 | C4: 2013-06-07 | D4: 0 | E4: 2013-06-10 | F4: 0 | G4: CP | H4: Acceptée | I4: =IF(OR(G4="Convention",H4="Refusée"),0,IF(H4="Annulée",-(NETWORKDAYS.INTL(C4,E4,1,JFERIES)-D4-F4),NETWORKDAYS.INTL(C4,E4,1,JFERIES)-D4-F4)) -> 2 | J4: 2013/06
A5: SANTUCCI Lionel | B5: 2013-06-04 | C5: 2013-06-12 | D5: 0 | E5: 2013-06-14 | F5: 0 | G5: CP | H5: Acceptée | I5: =IF(OR(G5="Convention",H5="Refusée"),0,IF(H5="Annulée",-(NETWORKDAYS.INTL(C5,E5,1,JFERIES)-D5-F5),NETWORKDAYS.INTL(C5,E5,1,JFERIES)-D5-F5)) -> 3 | J5: 2013/06
A6: DREVON Alain | B6: 2013-06-01 | C6: 2013-06-12 | D6: 0 | E6: 2013-06-12 | F6: 0.5 | G6: CP | H6: Acceptée | I6: =IF(OR(G6="Convention",H6="Refusée"),0,IF(H6="Annulée",-(NETWORKDAYS.INTL(C6,E6,1,JFERIES)-D6-F6),NETWORKDAYS.INTL(C6,E6,1,JFERIES)-D6-F6)) -> 0.5 | J6: 2013/06
A7: DREVON Alain | B7: 2013-06-01 | C7: 2013-06-14 | D7: 0 | E7: 2013-06-14 | F7: 0.5 | G7: CP | H7: Acceptée | I7: =IF(OR(G7="Convention",H7="Refusée"),0,IF(H7="Annulée",-(NETWORKDAYS.INTL(C7,E7,1,JFERIES)-D7-F7),NETWORKDAYS.INTL(C7,E7,1,JFERIES)-D7-F7)) -> 0.5 | J7: 2013/06
A8: DREVON Alain | B8: 2013-06-01 | C8: 2013-06-28 | D8: 0 | E8: 2013-06-28 | F8: 0 | G8: CP | H8: Acceptée | I8: =IF(OR(G8="Convention",H8="Refusée"),0,IF(H8="Annulée",-(NETWORKDAYS.INTL(C8,E8,1,JFERIES)-D8-F8),NETWORKDAYS.INTL(C8,E8,1,JFERIES)-D8-F8)) -> 1 | J8: 2013/06
A9: DREVON Alain | B9: 2013-05-21 | C9: 2013-08-16 | D9: 0 | E9: 2013-08-30 | F9: 0 | G9: CP | H9: Acceptée | I9: =IF(OR(G9="Convention",H9="Refusée"),0,IF(H9="Annulée",-(NETWORKDAYS.INTL(C9,E9,1,JFERIES)-D9-F9),NETWORKDAYS.INTL(C9,E9,1,JFERIES)-D9-F9)) -> 11 | J9: 2013/08
A10: LEDANT Charles | B10: 2013-05-21 | C10: 2013-08-05 | D10: 0 | E10: 2013-08-30 | F10: 0 | G10: CP | H10: Acceptée | I10: =IF(OR(G10="Convention",H10="Refusée"),0,IF(H10="Annulée",-(NETWORKDAYS.INTL(C10,E10,1,JFERIES)-D10-F10),NETWORKDAYS.INTL(C10,E10,1,JFERIES)-D10-F10)) -> 19 | J10: 2013/08
A11: LOCATELLI Bruno | B11: 2013-06-01 | C11: 2013-06-03 | D11: 0 | E11: 2013-06-03 | F11: 0 | G11: CP | H11: Acceptée | I11: =IF(OR(G11="Convention",H11="Refusée"),0,IF(H11="Annulée",-(NETWORKDAYS.INTL(C11,E11,1,JFERIES)-D11-F11),NETWORKDAYS.INTL(C11,E11,1,JFERIES)-D11-F11)) -> 1 | J11: 2013/06
A12: LOCATELLI Bruno | B12: 2013-06-01 | C12: 2013-06-10 | D12: 0 | E12: 2013-06-10 | F12: 0 | G12: CP | H12: Acceptée | I12: =IF(OR(G12="Convention",H12="Refusée"),0,IF(H12="Annulée",-(NETWORKDAYS.INTL(C12,E12,1,JFERIES)-D12-F12),NETWORKDAYS.INTL(C12,E12,1,JFERIES)-D12-F12)) -> 1 | J12: 2013/06
A13: LOCATELLI Bruno | B13: 2013-06-01 | C13: 2013-06-19 | D13: 0 | E13: 2013-06-19 | F13: 0.5 | G13: CP | H13: Acceptée | I13: =IF(OR(G13="Convention",H13="Refusée"),0,IF(H13="Annulée",-(NETWORKDAYS.INTL(C13,E13,1,JFERIES)-D13-F13),NETWORKDAYS.INTL(C13,E13,1,JFERIES)-D13-F13)) -> 0.5 | J13: 2013/06
A14: LOCATELLI Bruno | B14: 2013-06-01 | C14: 2013-06-24 | D14: 0 | E14: 2013-06-24 | F14: 0 | G14: CP | H14: Acceptée | I14: =IF(OR(G14="Convention",H14="Refusée"),0,IF(H14="Annulée",-(NETWORKDAYS.INTL(C14,E14,1,JFERIES)-D14-F14),NETWORKDAYS.INTL(C14,E14,1,JFERIES)-D14-F14)) -> 1 | J14: 2013/06
A15: LOCATELLI Bruno | B15: 2013-07-01 | C15: 2013-07-01 | D15: 0.5 | E15: 2013-07-01 | F15: 0 | G15: CP | H15: Acceptée | I15: =IF(OR(G15="Convention",H15="Refusée"),0,IF(H15="Annulée",-(NETWORKDAYS.INTL(C15,E15,1,JFERIES)-D15-F15),NETWORKDAYS.INTL(C15,E15,1,JFERIES)-D15-F15)) -> 0.5 | J15: 2013/07
A16: LOCATELLI Bruno | B16: 2013-07-01 | C16: 2013-07-05 | D16: 0.5 | E16: 2013-07-08 | F16: 0 | G16: CP | H16: Acceptée | I16: =IF(OR(G16="Convention",H16="Refusée"),0,IF(H16="Annulée",-(NETWORKDAYS.INTL(C16,E16,1,JFERIES)-D16-F16),NETWORKDAYS.INTL(C16,E16,1,JFERIES)-D16-F16)) -> 1.5 | J16: 2013/07
A17: LOCATELLI Bruno | B17: 2013-04-08 | C17: 2013-07-25 | D17: 0 | E17: 2013-07-31 | F17: 0 | G17: CP | H17: Acceptée | I17: =IF(OR(G17="Convention",H17="Refusée"),0,IF(H17="Annulée",-(NETWORKDAYS.INTL(C17,E17,1,JFERIES)-D17-F17),NETWORKDAYS.INTL(C17,E17,1,JFERIES)-D17-F17)) -> 5 | J17: 2013/07
A18: LOCATELLI Bruno | B18: 2013-08-01 | C18: 2013-08-16 | D18: 0 | E18: 2013-08-16 | F18: 0 | G18: CP | H18: Acceptée | I18: =IF(OR(G18="Convention",H18="Refusée"),0,IF(H18="Annulée",-(NETWORKDAYS.INTL(C18,E18,1,JFERIES)-D18-F18),NETWORKDAYS.INTL(C18,E18,1,JFERIES)-D18-F18)) -> 1 | J18: 2013/08
A19: LOCATELLI Bruno | B19: 2013-04-08 | C19: 2013-08-26 | D19: 0 | E19: 2013-08-31 | F19: 0 | G19: CP | H19: Acceptée | I19: =IF(OR(G19="Convention",H19="Refusée"),0,IF(H19="Annulée",-(NETWORKDAYS.INTL(C19,E19,1,JFERIES)-D19-F19),NETWORKDAYS.INTL(C19,E19,1,JFERIES)-D19-F19)) -> 5 | J19: 2013/08
A20: LOCATELLI Bruno | B20: 2013-04-08 | C20: 2013-09-01 | D20: 0 | E20: 2013-09-06 | F20: 0 | G20: CP | H20: Acceptée | I20: =IF(OR(G20="Convention",H20="Refusée"),0,IF(H20="Annulée",-(NETWORKDAYS.INTL(C20,E20,1,JFERIES)-D20-F20),NETWORKDAYS.INTL(C20,E20,1,JFERIES)-D20-F20)) -> 5 | J20: 2013/09
A21: MARAIS Bernard | B21: 2013-05-28 | C21: 2013-07-01 | D21: 0 | E21: 2013-07-12 | F21: 0 | G21: CP | H21: Acceptée | I21: =IF(OR(G21="Convention",H21="Refusée"),0,IF(H21="Annulée",-(NETWORKDAYS.INTL(C21,E21,1,JFERIES)-D21-F21),NETWORKDAYS.INTL(C21,E21,1,JFERIES)-D21-F21)) -> 10 | J21: 2013/07 | K21: g.bearzatto
A22: PONS Olivier | B22: 2013-05-28 | C22: 2013-07-29 | D22: 0 | E22: 2013-07-31 | F22: 0 | G22: CP | H22: Acceptée | I22: =IF(OR(G22="Convention",H22="Refusée"),0,IF(H22="Annulée",-(NETWORKDAYS.INTL(C22,E22,1,JFERIES)-D22-F22),NETWORKDAYS.INTL(C22,E22,1,JFERIES)-D22-F22)) -> 3 | J22: 2013/07
A23: PONS Olivier | B23: 2013-05-28 | C23: 2013-08-01 | D23: 0 | E23: 2013-08-19 | F23: 0 | G23: CP | H23: Acceptée | I23: =IF(OR(G23="Convention",H23="Refusée"),0,IF(H23="Annulée",-(NETWORKDAYS.INTL(C23,E23,1,JFERIES)-D23-F23),NETWORKDAYS.INTL(C23,E23,1,JFERIES)-D23-F23)) -> 12 | J23: 2013/08
A24: SANTUCCI Lionel | B24: 2013-05-28 | C24: 2013-07-29 | D24: 0 | E24: 2013-07-31 | F24: 0 | G24: CP | H24: Acceptée | I24: =IF(OR(G24="Convention",H24="Refusée"),0,IF(H24="Annulée",-(NETWORKDAYS.INTL(C24,E24,1,JFERIES)-D24-F24),NETWORKDAYS.INTL(C24,E24,1,JFERIES)-D24-F24)) -> 3 | J24: 2013/07
A25: SANTUCCI Lionel | B25: 2013-05-28 | C25: 2013-08-01 | D25: 0 | E25: 2013-08-19 | F25: 0 | G25: CP | H25: Acceptée | I25: =IF(OR(G25="Convention",H25="Refusée"),0,IF(H25="Annulée",-(NETWORKDAYS.INTL(C25,E25,1,JFERIES)-D25-F25),NETWORKDAYS.INTL(C25,E25,1,JFERIES)-D25-F25)) -> 12 | J25: 2013/08
A26: VAUTRAIN Franck | B26: 2013-06-03 | C26: 2013-06-14 | D26: 0.5 | E26: 2013-06-17 | F26: 0 | G26: CP | H26: Acceptée | I26: =IF(OR(G26="Convention",H26="Refusée"),0,IF(H26="Annulée",-(NETWORKDAYS.INTL(C26,E26,1,JFERIES)-D26-F26),NETWORKDAYS.INTL(C26,E26,1,JFERIES)-D26-F26)) -> 1.5 | J26: 2013/06
A27: VAUTRAIN Franck | B27: 2013-06-03 | C27: 2013-06-05 | D27: 0.5 | E27: 2013-06-05 | F27: 0 | G27: CP | H27: Acceptée | I27: =IF(OR(G27="Convention",H27="Refusée"),0,IF(H27="Annulée",-(NETWORKDAYS.INTL(C27,E27,1,JFERIES)-D27-F27),NETWORKDAYS.INTL(C27,E27,1,JFERIES)-D27-F27)) -> 0.5 | J27: 2013/06
A28: LAHAYE Laure | B28: 2013-06-03 | C28: 2013-06-13 | D28: 0.5 | E28: 2013-06-14 | F28: 0 | G28: CP | H28: Acceptée | I28: =IF(OR(G28="Convention",H28="Refusée"),0,IF(H28="Annulée",-(NETWORKDAYS.INTL(C28,E28,1,JFERIES)-D28-F28),NETWORKDAYS.INTL(C28,E28,1,JFERIES)-D28-F28)) -> 1.5 | J28: 2013/06
A29: PONS Olivier | B29: 2013-06-03 | C29: 2013-06-06 | D29: 0 | E29: 2013-06-06 | F29: 0 | G29: CP | H29: Acceptée | I29: =IF(OR(G29="Convention",H29="Refusée"),0,IF(H29="Annulée",-(NETWORKDAYS.INTL(C29,E29,1,JFERIES)-D29-F29),NETWORKDAYS.INTL(C29,E29,1,JFERIES)-D29-F29)) -> 1 | J29: 2013/06
A30: LEDANT Charles | B30: 2013-06-03 | C30: 2013-06-14 | D30: 0 | E30: 2013-06-17 | F30: 0 | G30: CP | H30: Acceptée | I30: =IF(OR(G30="Convention",H30="Refusée"),0,IF(H30="Annulée",-(NETWORKDAYS.INTL(C30,E30,1,JFERIES)-D30-F30),NETWORKDAYS.INTL(C30,E30,1,JFERIES)-D30-F30)) -> 2 | J30: 2013/06
A31: LEDANT Charles | B31: 2013-06-03 | C31: 2013-06-07 | D31: 0 | E31: 2013-06-07 | F31: 0 | G31: CP | H31: Acceptée | I31: =IF(OR(G31="Convention",H31="Refusée"),0,IF(H31="Annulée",-(NETWORKDAYS.INTL(C31,E31,1,JFERIES)-D31-F31),NETWORKDAYS.INTL(C31,E31,1,JFERIES)-D31-F31)) -> 1 | J31: 2013/06
A32: HAUTEBRANC Alexis | B32: 2013-06-03 | C32: 2013-06-07 | D32: 0 | E32: 2013-06-07 | F32: 0 | G32: CP | H32: Acceptée | I32: =IF(OR(G32="Convention",H32="Refusée"),0,IF(H32="Annulée",-(NETWORKDAYS.INTL(C32,E32,1,JFERIES)-D32-F32),NETWORKDAYS.INTL(C32,E32,1,JFERIES)-D32-F32)) -> 1 | J32: 2013/06 | K32: Remplace demande du 30/05
A33: HAUTEBRANC Alexis | B33: 2013-06-03 | C33: 2013-06-21 | D33: 0 | E33: 2013-06-21 | F33: 0 | G33: CP | H33: Acceptée | I33: =IF(OR(G33="Convention",H33="Refusée"),0,IF(H33="Annulée",-(NETWORKDAYS.INTL(C33,E33,1,JFERIES)-D33-F33),NETWORKDAYS.INTL(C33,E33,1,JFERIES)-D33-F33)) -> 1 | J33: 2013/06
A34: CHEVALIER Yohan | B34: 2013-06-03 | C34: 2013-06-13 | D34: 0 | E34: 2013-06-14 | F34: 0 | G34: CP | H34: Acceptée | I34: =IF(OR(G34="Convention",H34="Refusée"),0,IF(H34="Annulée",-(NETWORKDAYS.INTL(C34,E34,1,JFERIES)-D34-F34),NETWORKDAYS.INTL(C34,E34,1,JFERIES)-D34-F34)) -> 2 | J34: 2013/06
A35: BELBEY Dounia | B35: 2013-05-28 | C35: 2013-06-03 | D35: 0 | E35: 2013-06-03 | F35: 0 | G35: RTT | H35: Acceptée | I35: =IF(OR(G35="Convention",H35="Refusée"),0,IF(H35="Annulée",-(NETWORKDAYS.INTL(C35,E35,1,JFERIES)-D35-F35),NETWORKDAYS.INTL(C35,E35,1,JFERIES)-D35-F35)) -> 1 | J35: 2013/06
A36: TAQUET Alain | B36: 2013-05-29 | C36: 2013-08-12 | D36: 0 | E36: 2013-08-30 | F36: 0 | G36: CP | H36: Acceptée | I36: =IF(OR(G36="Convention",H36="Refusée"),0,IF(H36="Annulée",-(NETWORKDAYS.INTL(C36,E36,1,JFERIES)-D36-F36),NETWORKDAYS.INTL(C36,E36,1,JFERIES)-D36-F36)) -> 14 | J36: 2013/08 | K36: a compléter
A37: DREVON Alain | B37: 2013-05-21 | C37: 2013-07-22 | D37: 0 | E37: 2013-07-26 | F37: 0 | G37: CP | H37: Refusée | I37: =IF(OR(G37="Convention",H37="Refusée"),0,IF(H37="Annulée",-(NETWORKDAYS.INTL(C37,E37,1,JFERIES)-D37-F37),NETWORKDAYS.INTL(C37,E37,1,JFERIES)-D37-F37)) -> 0 | J37: 2013/07 | K37: Hors période autorisée
A38: BEARZATTO Giovanni | B38: 2013-06-06 | C38: 2013-06-07 | D38: 0.5 | E38: 2013-06-07 | F38: 0 | G38: CP | H38: Acceptée | I38: =IF(OR(G38="Convention",H38="Refusée"),0,IF(H38="Annulée",-(NETWORKDAYS.INTL(C38,E38,1,JFERIES)-D38-F38),NETWORKDAYS.INTL(C38,E38,1,JFERIES)-D38-F38)) -> 0.5 | J38: 2013/06
A39: PONS Olivier | B39: 2013-06-06 | C39: 2013-06-05 | D39: 0 | E39: 2013-06-05 | F39: 0 | G39: CP | H39: Acceptée | I39: =IF(OR(G39="Convention",H39="Refusée"),0,IF(H39="Annulée",-(NETWORKDAYS.INTL(C39,E39,1,JFERIES)-D39-F39),NETWORKDAYS.INTL(C39,E39,1,JFERIES)-D39-F39)) -> 1 | J39: 2013/06 | K39: 0
A40: HAUTCLOCQ Claude | B40: 2013-06-05 | C40: 2013-08-01 | D40: 0 | E40: 2013-08-23 | F40: 0 | G40: CP | H40: Acceptée | I40: =IF(OR(G40="Convention",H40="Refusée"),0,IF(H40="Annulée",-(NETWORKDAYS.INTL(C40,E40,1,JFERIES)-D40-F40),NETWORKDAYS.INTL(C40,E40,1,JFERIES)-D40-F40)) -> 16 | J40: 2013/08
A41: HAUTCLOCQ Claude | B41: 2013-06-05 | C41: 2013-08-26 | D41: 0 | E41: 2013-08-27 | F41: 0 | G41: RTT | H41: Acceptée | I41: =IF(OR(G41="Convention",H41="Refusée"),0,IF(H41="Annulée",-(NETWORKDAYS.INTL(C41,E41,1,JFERIES)-D41-F41),NETWORKDAYS.INTL(C41,E41,1,JFERIES)-D41-F41)) -> 2 | J41: 2013/08
A42: PLONQUET Christian | B42: 2013-06-05 | C42: 2013-07-29 | D42: 0 | E42: 2013-07-31 | F42: 0 | G42: CP | H42: Acceptée | I42: =IF(OR(G42="Convention",H42="Refusée"),0,IF(H42="Annulée",-(NETWORKDAYS.INTL(C42,E42,1,JFERIES)-D42-F42),NETWORKDAYS.INTL(C42,E42,1,JFERIES)-D42-F42)) -> 3 | J42: 2013/07
A43: PLONQUET Christian | B43: 2013-06-05 | C43: 2013-08-01 | D43: 0 | E43: 2013-08-23 | F43: 0 | G43: CP | H43: Acceptée | I43: =IF(OR(G43="Convention",H43="Refusée"),0,IF(H43="Annulée",-(NETWORKDAYS.INTL(C43,E43,1,JFERIES)-D43-F43),NETWORKDAYS.INTL(C43,E43,1,JFERIES)-D43-F43)) -> 16 | J43: 2013/08
A44: HEMLER Christelle | B44: 2013-06-06 | C44: 2013-06-10 | D44: 0 | E44: 2013-06-10 | F44: 0 | G44: CP | H44: Acceptée | I44: =IF(OR(G44="Convention",H44="Refusée"),0,IF(H44="Annulée",-(NETWORKDAYS.INTL(C44,E44,1,JFERIES)-D44-F44),NETWORKDAYS.INTL(C44,E44,1,JFERIES)-D44-F44)) -> 1 | J44: 2013/06
A45: HEMLER Christelle | B45: 2013-06-06 | C45: 2013-06-17 | D45: 0 | E45: 2013-06-17 | F45: 0 | G45: CP | H45: Acceptée | I45: =IF(OR(G45="Convention",H45="Refusée"),0,IF(H45="Annulée",-(NETWORKDAYS.INTL(C45,E45,1,JFERIES)-D45-F45),NETWORKDAYS.INTL(C45,E45,1,JFERIES)-D45-F45)) -> 1 | J45: 2013/06
A46: HEMLER Christelle | B46: 2013-06-06 | C46: 2013-06-26 | D46: 0 | E46: 2013-06-26 | F46: 0 | G46: CP | H46: Acceptée | I46: =IF(OR(G46="Convention",H46="Refusée"),0,IF(H46="Annulée",-(NETWORKDAYS.INTL(C46,E46,1,JFERIES)-D46-F46),NETWORKDAYS.INTL(C46,E46,1,JFERIES)-D46-F46)) -> 1 | J46: 2013/06
A47: HEMLER Christelle | B47: 2013-06-06 | C47: 2013-07-01 | D47: 0 | E47: 2013-07-01 | F47: 0 | G47: CP | H47: Acceptée | I47: =IF(OR(G47="Convention",H47="Refusée"),0,IF(H47="Annulée",-(NETWORKDAYS.INTL(C47,E47,1,JFERIES)-D47-F47),NETWORKDAYS.INTL(C47,E47,1,JFERIES)-D47-F47)) -> 1 | J47: 2013/07
A48: HEMLER Christelle | B48: 2013-06-06 | C48: 2013-07-24 | D48: 0 | E48: 2013-07-24 | F48: 0 | G48: CP | H48: Acceptée | I48: =IF(OR(G48="Convention",H48="Refusée"),0,IF(H48="Annulée",-(NETWORKDAYS.INTL(C48,E48,1,JFERIES)-D48-F48),NETWORKDAYS.INTL(C48,E48,1,JFERIES)-D48-F48)) -> 1 | J48: 2013/07
A49: HEMLER Christelle | B49: 2013-06-06 | C49: 2013-07-29 | D49: 0 | E49: 2013-07-31 | F49: 0 | G49: CP | H49: Acceptée | I49: =IF(OR(G49="Convention",H49="Refusée"),0,IF(H49="Annulée",-(NETWORKDAYS.INTL(C49,E49,1,JFERIES)-D49-F49),NETWORKDAYS.INTL(C49,E49,1,JFERIES)-D49-F49)) -> 3 | J49: 2013/07
A50: HEMLER Christelle | B50: 2013-06-06 | C50: 2013-08-01 | D50: 0 | E50: 2013-08-09 | F50: 0 | G50: CP | H50: Acceptée | I50: =IF(OR(G50="Convention",H50="Refusée"),0,IF(H50="Annulée",-(NETWORKDAYS.INTL(C50,E50,1,JFERIES)-D50-F50),NETWORKDAYS.INTL(C50,E50,1,JFERIES)-D50-F50)) -> 7 | J50: 2013/08
A51: HEMLER Christelle | B51: 2013-06-06 | C51: 2013-09-02 | D51: 0 | E51: 2013-09-06 | F51: 0 | G51: CP | H51: Acceptée | I51: =IF(OR(G51="Convention",H51="Refusée"),0,IF(H51="Annulée",-(NETWORKDAYS.INTL(C51,E51,1,JFERIES)-D51-F51),NETWORKDAYS.INTL(C51,E51,1,JFERIES)-D51-F51)) -> 5 | J51: 2013/09
A52: DEREPPE Bruno | B52: 2013-06-06 | C52: 2013-06-07 | D52: 0 | E52: 2013-06-07 | F52: 0 | G52: CP | H52: Acceptée | I52: =IF(OR(G52="Convention",H52="Refusée"),0,IF(H52="Annulée",-(NETWORKDAYS.INTL(C52,E52,1,JFERIES)-D52-F52),NETWORKDAYS.INTL(C52,E52,1,JFERIES)-D52-F52)) -> 1 | J52: 2013/06
A53: DEREPPE Bruno | B53: 2013-06-06 | C53: 2013-07-25 | D53: 0 | E53: 2013-07-31 | F53: 0 | G53: CP | H53: Acceptée | I53: =IF(OR(G53="Convention",H53="Refusée"),0,IF(H53="Annulée",-(NETWORKDAYS.INTL(C53,E53,1,JFERIES)-D53-F53),NETWORKDAYS.INTL(C53,E53,1,JFERIES)-D53-F53)) -> 5 | J53: 2013/07
A54: DEREPPE Bruno | B54: 2013-06-06 | C54: 2013-08-01 | D54: 0 | E54: 2013-08-19 | F54: 0 | G54: CP | H54: Acceptée | I54: =IF(OR(G54="Convention",H54="Refusée"),0,IF(H54="Annulée",-(NETWORKDAYS.INTL(C54,E54,1,JFERIES)-D54-F54),NETWORKDAYS.INTL(C54,E54,1,JFERIES)-D54-F54)) -> 12 | J54: 2013/08
A55: MARZOUK Sami | B55: 2013-06-06 | C55: 2013-07-29 | D55: 0 | E55: 2013-07-31 | F55: 0 | G55: CP | H55: Acceptée | I55: =IF(OR(G55="Convention",H55="Refusée"),0,IF(H55="Annulée",-(NETWORKDAYS.INTL(C55,E55,1,JFERIES)-D55-F55),NETWORKDAYS.INTL(C55,E55,1,JFERIES)-D55-F55)) -> 3 | J55: 2013/07
A56: MARZOUK Sami | B56: 2013-06-06 | C56: 2013-08-01 | D56: 0 | E56: 2013-08-30 | F56: 0 | G56: CP | H56: Acceptée | I56: =IF(OR(G56="Convention",H56="Refusée"),0,IF(H56="Annulée",-(NETWORKDAYS.INTL(C56,E56,1,JFERIES)-D56-F56),NETWORKDAYS.INTL(C56,E56,1,JFERIES)-D56-F56)) -> 21 | J56: 2013/08
A57: POMMERELL Patrick | B57: 2013-06-04 | C57: 2013-06-04 | D57: 0 | E57: 2013-06-04 | F57: 0 | G57: CP | H57: Acceptée | I57: =IF(OR(G57="Convention",H57="Refusée"),0,IF(H57="Annulée",-(NETWORKDAYS.INTL(C57,E57,1,JFERIES)-D57-F57),NETWORKDAYS.INTL(C57,E57,1,JFERIES)-D57-F57)) -> 1 | J57: 2013/06
A58: POMMERELL Patrick | B58: 2013-06-04 | C58: 2013-06-07 | D58: 0.5 | E58: 2013-06-10 | F58: 0 | G58: CP | H58: Acceptée | I58: =IF(OR(G58="Convention",H58="Refusée"),0,IF(H58="Annulée",-(NETWORKDAYS.INTL(C58,E58,1,JFERIES)-D58-F58),NETWORKDAYS.INTL(C58,E58,1,JFERIES)-D58-F58)) -> 1.5 | J58: 2013/06
A59: POMMERELL Patrick | B59: 2013-06-06 | C59: 2013-08-05 | D59: 0 | E59: 2013-08-16 | F59: 0 | G59: CP | H59: Acceptée | I59: =IF(OR(G59="Convention",H59="Refusée"),0,IF(H59="Annulée",-(NETWORKDAYS.INTL(C59,E59,1,JFERIES)-D59-F59),NETWORKDAYS.INTL(C59,E59,1,JFERIES)-D59-F59)) -> 9 | J59: 2013/08
A60: BEARZATTO Giovanni | B60: 2013-06-06 | C60: 2013-06-24 | D60: 0 | E60: 2013-06-24 | F60: 0 | G60: RTT | H60: Acceptée | I60: =IF(OR(G60="Convention",H60="Refusée"),0,IF(H60="Annulée",-(NETWORKDAYS.INTL(C60,E60,1,JFERIES)-D60-F60),NETWORKDAYS.INTL(C60,E60,1,JFERIES)-D60-F60)) -> 1 | J60: 2013/06
A61: BEARZATTO Giovanni | B61: 2013-06-06 | C61: 2013-08-16 | D61: 0 | E61: 2013-08-16 | F61: 0 | G61: RTT | H61: Acceptée | I61: =IF(OR(G61="Convention",H61="Refusée"),0,IF(H61="Annulée",-(NETWORKDAYS.INTL(C61,E61,1,JFERIES)-D61-F61),NETWORKDAYS.INTL(C61,E61,1,JFERIES)-D61-F61)) -> 1 | J61: 2013/08
A62: BEARZATTO Giovanni | B62: 2013-06-06 | C62: 2013-08-19 | D62: 0 | E62: 2013-08-31 | F62: 0 | G62: CP | H62: Acceptée | I62: =IF(OR(G62="Convention",H62="Refusée"),0,IF(H62="Annulée",-(NETWORKDAYS.INTL(C62,E62,1,JFERIES)-D62-F62),NETWORKDAYS.INTL(C62,E62,1,JFERIES)-D62-F62)) -> 10 | J62: 2013/08
A63: BEARZATTO Giovanni | B63: 2013-06-06 | C63: 2013-09-01 | D63: 0 | E63: 2013-09-09 | F63: 0 | G63: CP | H63: Acceptée | I63: =IF(OR(G63="Convention",H63="Refusée"),0,IF(H63="Annulée",-(NETWORKDAYS.INTL(C63,E63,1,JFERIES)-D63-F63),NETWORKDAYS.INTL(C63,E63,1,JFERIES)-D63-F63)) -> 6 | J63: 2013/09
A64: DREZET Olivier | B64: 2013-06-12 | C64: 2013-06-14 | D64: 0 | E64: 2013-06-14 | F64: 0 | G64: CP | H64: Acceptée | I64: =IF(OR(G64="Convention",H64="Refusée"),0,IF(H64="Annulée",-(NETWORKDAYS.INTL(C64,E64,1,JFERIES)-D64-F64),NETWORKDAYS.INTL(C64,E64,1,JFERIES)-D64-F64)) -> 1 | J64: 2013/06
A65: DREZET Olivier | B65: 2013-05-31 | C65: 2013-08-05 | D65: 0 | E65: 2013-08-23 | F65: 0 | G65: CP | H65: Acceptée | I65: =IF(OR(G65="Convention",H65="Refusée"),0,IF(H65="Annulée",-(NETWORKDAYS.INTL(C65,E65,1,JFERIES)-D65-F65),NETWORKDAYS.INTL(C65,E65,1,JFERIES)-D65-F65)) -> 14 | J65: 2013/08
A66: GUIOT Fabien | B66: 2013-06-03 | C66: 2013-06-03 | D66: 0 | E66: 2013-06-04 | F66: 0 | G66: CP | H66: Acceptée | I66: =IF(OR(G66="Convention",H66="Refusée"),0,IF(H66="Annulée",-(NETWORKDAYS.INTL(C66,E66,1,JFERIES)-D66-F66),NETWORKDAYS.INTL(C66,E66,1,JFERIES)-D66-F66)) -> 2 | J66: 2013/06 | K66: 31/05 passé sur juin
A67: PONS Olivier | B67: 2013-06-10 | C67: 2013-06-13 | D67: 0 | E67: 2013-06-14 | F67: 0 | G67: CP | H67: Acceptée | I67: =IF(OR(G67="Convention",H67="Refusée"),0,IF(H67="Annulée",-(NETWORKDAYS.INTL(C67,E67,1,JFERIES)-D67-F67),NETWORKDAYS.INTL(C67,E67,1,JFERIES)-D67-F67)) -> 2 | J67: 2013/06
A68: PONS Olivier | B68: 2013-06-07 | C68: 2013-06-07 | D68: 0 | E68: 2013-06-07 | F68: 0 | G68: CP | H68: Acceptée | I68: =IF(OR(G68="Convention",H68="Refusée"),0,IF(H68="Annulée",-(NETWORKDAYS.INTL(C68,E68,1,JFERIES)-D68-F68),NETWORKDAYS.INTL(C68,E68,1,JFERIES)-D68-F68)) -> 1 | J68: 2013/06
A69: LAHAYE Laure | B69: 2013-06-11 | C69: 2013-07-09 | D69: 0.5 | E69: 2013-07-09 | F69: 0 | G69: RTT | H69: Acceptée | I69: =IF(OR(G69="Convention",H69="Refusée"),0,IF(H69="Annulée",-(NETWORKDAYS.INTL(C69,E69,1,JFERIES)-D69-F69),NETWORKDAYS.INTL(C69,E69,1,JFERIES)-D69-F69)) -> 0.5 | J69: 2013/07
A70: BELBEY Dounia | B70: 2013-06-13 | C70: 2013-06-25 | D70: 0.5 | E70: 2013-06-25 | F70: 0 | G70: CP | H70: Acceptée | I70: =IF(OR(G70="Convention",H70="Refusée"),0,IF(H70="Annulée",-(NETWORKDAYS.INTL(C70,E70,1,JFERIES)-D70-F70),NETWORKDAYS.INTL(C70,E70,1,JFERIES)-D70-F70)) -> 0.5 | J70: 2013/06
A71: GUERIN Viviane | B71: 2013-05-30 | C71: 2013-01-31 | D71: 0 | E71: 2013-01-31 | F71: 0 | G71: RTT | H71: Acceptée | I71: =IF(OR(G71="Convention",H71="Refusée"),0,IF(H71="Annulée",-(NETWORKDAYS.INTL(C71,E71,1,JFERIES)-D71-F71),NETWORKDAYS.INTL(C71,E71,1,JFERIES)-D71-F71)) -> 1 | J71: 2013/01
A72: GUERIN Viviane | B72: 2013-05-30 | C72: 2013-03-28 | D72: 0 | E72: 2013-03-28 | F72: 0 | G72: RTT | H72: Acceptée | I72: =IF(OR(G72="Convention",H72="Refusée"),0,IF(H72="Annulée",-(NETWORKDAYS.INTL(C72,E72,1,JFERIES)-D72-F72),NETWORKDAYS.INTL(C72,E72,1,JFERIES)-D72-F72)) -> 1 | J72: 2013/03
A73: GUERIN Viviane | B73: 2013-10-18 | C73: 2013-11-04 | D73: 0 | E73: 2013-11-04 | F73: 0 | G73: RTT | H73: Acceptée | I73: =IF(OR(G73="Convention",H73="Refusée"),0,IF(H73="Annulée",-(NETWORKDAYS.INTL(C73,E73,1,JFERIES)-D73-F73),NETWORKDAYS.INTL(C73,E73,1,JFERIES)-D73-F73)) -> 1 | J73: 2013/11 | K73: remplacemt du 25/11 initialement prévu
A74: GUERIN Viviane | B74: 2013-06-14 | C74: 2013-07-15 | D74: 0 | E74: 2013-07-15 | F74: 0 | G74: RTT | H74: Acceptée | I74: =IF(OR(G74="Convention",H74="Refusée"),0,IF(H74="Annulée",-(NETWORKDAYS.INTL(C74,E74,1,JFERIES)-D74-F74),NETWORKDAYS.INTL(C74,E74,1,JFERIES)-D74-F74)) -> 1 | J74: 2013/07
A75: COUTANT Jean Paul | B75: 2013-06-19 | C75: 2013-06-28 | D75: 0 | E75: 2013-06-28 | F75: 0.5 | G75: CP | H75: Acceptée | I75: =IF(OR(G75="Convention",H75="Refusée"),0,IF(H75="Annulée",-(NETWORKDAYS.INTL(C75,E75,1,JFERIES)-D75-F75),NETWORKDAYS.INTL(C75,E75,1,JFERIES)-D75-F75)) -> 0.5 | J75: 2013/06
A76: COUTANT Jean Paul | B76: 2013-06-19 | C76: 2013-07-12 | D76: 0.5 | E76: 2013-07-15 | F76: 0 | G76: CP | H76: Acceptée | I76: =IF(OR(G76="Convention",H76="Refusée"),0,IF(H76="Annulée",-(NETWORKDAYS.INTL(C76,E76,1,JFERIES)-D76-F76),NETWORKDAYS.INTL(C76,E76,1,JFERIES)-D76-F76)) -> 1.5 | J76: 2013/07
A77: GUINOT Nathalie | B77: 2013-06-05 | C77: 2013-06-05 | D77: 0 | E77: 2013-06-05 | F77: 0 | G77: CP | H77: Acceptée | I77: =IF(OR(G77="Convention",H77="Refusée"),0,IF(H77="Annulée",-(NETWORKDAYS.INTL(C77,E77,1,JFERIES)-D77-F77),NETWORKDAYS.INTL(C77,E77,1,JFERIES)-D77-F77)) -> 1 | J77: 2013/06
A78: GUINOT Nathalie | B78: 2013-06-05 | C78: 2013-06-12 | D78: 0 | E78: 2013-06-12 | F78: 0 | G78: CP | H78: Acceptée | I78: =IF(OR(G78="Convention",H78="Refusée"),0,IF(H78="Annulée",-(NETWORKDAYS.INTL(C78,E78,1,JFERIES)-D78-F78),NETWORKDAYS.INTL(C78,E78,1,JFERIES)-D78-F78)) -> 1 | J78: 2013/06
A79: GUINOT Nathalie | B79: 2013-06-05 | C79: 2013-06-19 | D79: 0 | E79: 2013-06-19 | F79: 0 | G79: CP | H79: Acceptée | I79: =IF(OR(G79="Convention",H79="Refusée"),0,IF(H79="Annulée",-(NETWORKDAYS.INTL(C79,E79,1,JFERIES)-D79-F79),NETWORKDAYS.INTL(C79,E79,1,JFERIES)-D79-F79)) -> 1 | J79: 2013/06
A80: GUINOT Nathalie | B80: 2013-06-20 | C80: 2013-07-17 | D80: 0 | E80: 2013-07-17 | F80: 0 | G80: CP | H80: Acceptée | I80: =IF(OR(G80="Convention",H80="Refusée"),0,IF(H80="Annulée",-(NETWORKDAYS.INTL(C80,E80,1,JFERIES)-D80-F80),NETWORKDAYS.INTL(C80,E80,1,JFERIES)-D80-F80)) -> 1 | J80: 2013/07
A81: GUINOT Nathalie | B81: 2013-06-20 | C81: 2013-07-02 | D81: 0 | E81: 2013-07-02 | F81: 0 | G81: CP | H81: Acceptée | I81: =IF(OR(G81="Convention",H81="Refusée"),0,IF(H81="Annulée",-(NETWORKDAYS.INTL(C81,E81,1,JFERIES)-D81-F81),NETWORKDAYS.INTL(C81,E81,1,JFERIES)-D81-F81)) -> 1 | J81: 2013/07
A82: GUINOT Nathalie | B82: 2013-06-21 | C82: 2013-08-12 | D82: 0 | E82: 2013-08-30 | F82: 0 | G82: CP | H82: Acceptée | I82: =IF(OR(G82="Convention",H82="Refusée"),0,IF(H82="Annulée",-(NETWORKDAYS.INTL(C82,E82,1,JFERIES)-D82-F82),NETWORKDAYS.INTL(C82,E82,1,JFERIES)-D82-F82)) -> 14 | J82: 2013/08
A83: ROBIN Kevin | B83: 2013-06-20 | C83: 2013-08-12 | D83: 0 | E83: 2013-08-30 | F83: 0 | G83: CP | H83: Acceptée | I83: =IF(OR(G83="Convention",H83="Refusée"),0,IF(H83="Annulée",-(NETWORKDAYS.INTL(C83,E83,1,JFERIES)-D83-F83),NETWORKDAYS.INTL(C83,E83,1,JFERIES)-D83-F83)) -> 14 | J83: 2013/08
A84: SOUCHET Alain | B84: 2013-06-21 | C84: 2013-08-05 | D84: 0 | E84: 2013-08-31 | F84: 0 | G84: CP | H84: Acceptée | I84: =IF(OR(G84="Convention",H84="Refusée"),0,IF(H84="Annulée",-(NETWORKDAYS.INTL(C84,E84,1,JFERIES)-D84-F84),NETWORKDAYS.INTL(C84,E84,1,JFERIES)-D84-F84)) -> 19 | J84: 2013/08
A85: SOUCHET Alain | B85: 2013-06-21 | C85: 2013-09-01 | D85: 0 | E85: 2013-09-02 | F85: 0 | G85: CP | H85: Acceptée | I85: =IF(OR(G85="Convention",H85="Refusée"),0,IF(H85="Annulée",-(NETWORKDAYS.INTL(C85,E85,1,JFERIES)-D85-F85),NETWORKDAYS.INTL(C85,E85,1,JFERIES)-D85-F85)) -> 1 | J85: 2013/09
A86: SIODMAK Eric | B86: 2013-06-27 | C86: 2013-08-12 | D86: 0 | E86: 2013-08-31 | F86: 0 | G86: CP | H86: Acceptée | I86: =IF(OR(G86="Convention",H86="Refusée"),0,IF(H86="Annulée",-(NETWORKDAYS.INTL(C86,E86,1,JFERIES)-D86-F86),NETWORKDAYS.INTL(C86,E86,1,JFERIES)-D86-F86)) -> 14 | J86: 2013/08
A87: SIODMAK Eric | B87: 2013-06-27 | C87: 2013-09-01 | D87: 0 | E87: 2013-09-02 | F87: 0 | G87: CP | H87: Acceptée | I87: =IF(OR(G87="Convention",H87="Refusée"),0,IF(H87="Annulée",-(NETWORKDAYS.INTL(C87,E87,1,JFERIES)-D87-F87),NETWORKDAYS.INTL(C87,E87,1,JFERIES)-D87-F87)) -> 1 | J87: 2013/09
A88: SIODMAK Eric | B88: 2013-06-27 | C88: 2013-08-09 | D88: 0 | E88: 2013-08-09 | F88: 0 | G88: RTT | H88: Acceptée | I88: =IF(OR(G88="Convention",H88="Refusée"),0,IF(H88="Annulée",-(NETWORKDAYS.INTL(C88,E88,1,JFERIES)-D88-F88),NETWORKDAYS.INTL(C88,E88,1,JFERIES)-D88-F88)) -> 1 | J88: 2013/08
A89: KADEM Christophe | B89: 2013-06-24 | C89: 2013-07-09 | D89: 0 | E89: 2013-07-09 | F89: 0 | G89: RTT | H89: Acceptée | I89: =IF(OR(G89="Convention",H89="Refusée"),0,IF(H89="Annulée",-(NETWORKDAYS.INTL(C89,E89,1,JFERIES)-D89-F89),NETWORKDAYS.INTL(C89,E89,1,JFERIES)-D89-F89)) -> 1 | J89: 2013/07
A90: KADEM Christophe | B90: 2013-06-24 | C90: 2013-07-08 | D90: 0 | E90: 2013-07-08 | F90: 0.5 | G90: CP | H90: Acceptée | I90: =IF(OR(G90="Convention",H90="Refusée"),0,IF(H90="Annulée",-(NETWORKDAYS.INTL(C90,E90,1,JFERIES)-D90-F90),NETWORKDAYS.INTL(C90,E90,1,JFERIES)-D90-F90)) -> 0.5 | J90: 2013/07
A91: KADEM Christophe | B91: 2013-06-24 | C91: 2013-07-26 | D91: 0 | E91: 2013-07-31 | F91: 0 | G91: CP | H91: Acceptée | I91: =IF(OR(G91="Convention",H91="Refusée"),0,IF(H91="Annulée",-(NETWORKDAYS.INTL(C91,E91,1,JFERIES)-D91-F91),NETWORKDAYS.INTL(C91,E91,1,JFERIES)-D91-F91)) -> 4 | J91: 2013/07
A92: KADEM Christophe | B92: 2013-06-24 | C92: 2013-08-01 | D92: 0 | E92: 2013-08-18 | F92: 0 | G92: CP | H92: Acceptée | I92: =IF(OR(G92="Convention",H92="Refusée"),0,IF(H92="Annulée",-(NETWORKDAYS.INTL(C92,E92,1,JFERIES)-D92-F92),NETWORKDAYS.INTL(C92,E92,1,JFERIES)-D92-F92)) -> 11 | J92: 2013/08
A93: CHEVALIER Yohan | B93: 2013-06-06 | C93: 2013-08-16 | D93: 0 | E93: 2013-08-30 | F93: 0 | G93: CP | H93: Acceptée | I93: =IF(OR(G93="Convention",H93="Refusée"),0,IF(H93="Annulée",-(NETWORKDAYS.INTL(C93,E93,1,JFERIES)-D93-F93),NETWORKDAYS.INTL(C93,E93,1,JFERIES)-D93-F93)) -> 11 | J93: 2013/08
A94: MARAIS Bernard | B94: 2013-07-01 | C94: 2013-09-02 | D94: 0 | E94: 2013-09-06 | F94: 0 | G94: CP | H94: Acceptée | I94: =IF(OR(G94="Convention",H94="Refusée"),0,IF(H94="Annulée",-(NETWORKDAYS.INTL(C94,E94,1,JFERIES)-D94-F94),NETWORKDAYS.INTL(C94,E94,1,JFERIES)-D94-F94)) -> 5 | J94: 2013/09
A95: GUINOT Nathalie | B95: 2013-06-20 | C95: 2013-07-10 | D95: 0 | E95: 2013-07-10 | F95: 0 | G95: CP | H95: Acceptée | I95: =IF(OR(G95="Convention",H95="Refusée"),0,IF(H95="Annulée",-(NETWORKDAYS.INTL(C95,E95,1,JFERIES)-D95-F95),NETWORKDAYS.INTL(C95,E95,1,JFERIES)-D95-F95)) -> 1 | J95: 2013/07
A96: SANTUCCI Lionel | B96: 2013-06-26 | C96: 2013-07-19 | D96: 0 | E96: 2013-07-19 | F96: 0 | G96: RTT | H96: Acceptée | I96: =IF(OR(G96="Convention",H96="Refusée"),0,IF(H96="Annulée",-(NETWORKDAYS.INTL(C96,E96,1,JFERIES)-D96-F96),NETWORKDAYS.INTL(C96,E96,1,JFERIES)-D96-F96)) -> 1 | J96: 2013/07
A97: CHEVALIER Yohan | B97: 2013-06-26 | C97: 2013-07-05 | D97: 0 | E97: 2013-07-05 | F97: 0 | G97: CP | H97: Acceptée | I97: =IF(OR(G97="Convention",H97="Refusée"),0,IF(H97="Annulée",-(NETWORKDAYS.INTL(C97,E97,1,JFERIES)-D97-F97),NETWORKDAYS.INTL(C97,E97,1,JFERIES)-D97-F97)) -> 1 | J97: 2013/07
A98: LOYER Michel | B98: 2013-07-01 | C98: 2013-07-29 | D98: 0 | E98: 2013-07-31 | F98: 0 | G98: CP | H98: Acceptée | I98: =IF(OR(G98="Convention",H98="Refusée"),0,IF(H98="Annulée",-(NETWORKDAYS.INTL(C98,E98,1,JFERIES)-D98-F98),NETWORKDAYS.INTL(C98,E98,1,JFERIES)-D98-F98)) -> 3 | J98: 2013/07
A99: LOYER Michel | B99: 2013-07-01 | C99: 2013-08-01 | D99: 0 | E99: 2013-08-19 | F99: 0 | G99: CP | H99: Acceptée | I99: =IF(OR(G99="Convention",H99="Refusée"),0,IF(H99="Annulée",-(NETWORKDAYS.INTL(C99,E99,1,JFERIES)-D99-F99),NETWORKDAYS.INTL(C99,E99,1,JFERIES)-D99-F99)) -> 12 | J99: 2013/08
A100: GUERIN Viviane | B100: 2013-06-01 | C100: 2013-06-03 | D100: 0 | E100: 2013-06-03 | F100: 0 | G100: CP | H100: Acceptée | I100: =IF(OR(G100="Convention",H100="Refusée"),0,IF(H100="Annulée",-(NETWORKDAYS.INTL(C100,E100,1,JFERIES)-D100-F100),NETWORKDAYS.INTL(C100,E100,1,JFERIES)-D100-F100)) -> 1 | J100: 2013/06
A101: GUERIN Viviane | B101: 2013-07-01 | C101: 2013-07-12 | D101: 0 | E101: 2013-07-12 | F101: 0 | G101: CP | H101: Acceptée | I101: =IF(OR(G101="Convention",H101="Refusée"),0,IF(H101="Annulée",-(NETWORKDAYS.INTL(C101,E101,1,JFERIES)-D101-F101),NETWORKDAYS.INTL(C101,E101,1,JFERIES)-D101-F101)) -> 1 | J101: 2013/07
A102: GUERIN Viviane | B102: 2013-07-01 | C102: 2013-07-26 | D102: 0 | E102: 2013-07-26 | F102: 0 | G102: CP | H102: Acceptée | I102: =IF(OR(G102="Convention",H102="Refusée"),0,IF(H102="Annulée",-(NETWORKDAYS.INTL(C102,E102,1,JFERIES)-D102-F102),NETWORKDAYS.INTL(C102,E102,1,JFERIES)-D102-F102)) -> 1 | J102: 2013/07
A103: HAUTEBRANC Alexis | B103: 2013-06-24 | C103: 2013-07-05 | D103: 0 | E103: 2013-07-05 | F103: 0 | G103: RTT | H103: Acceptée | I103: =IF(OR(G103="Convention",H103="Refusée"),0,IF(H103="Annulée",-(NETWORKDAYS.INTL(C103,E103,1,JFERIES)-D103-F103),NETWORKDAYS.INTL(C103,E103,1,JFERIES)-D103-F103)) -> 1 | J103: 2013/07
A104: DREVON Alain | B104: 2013-06-25 | C104: 2013-09-01 | D104: 0 | E104: 2013-09-06 | F104: 0 | G104: CP | H104: Acceptée | I104: =IF(OR(G104="Convention",H104="Refusée"),0,IF(H104="Annulée",-(NETWORKDAYS.INTL(C104,E104,1,JFERIES)-D104-F104),NETWORKDAYS.INTL(C104,E104,1,JFERIES)-D104-F104)) -> 5 | J104: 2013/09
A105: HAUTEBRANC Alexis | B105: 2013-07-01 | C105: 2013-07-29 | D105: 0 | E105: 2013-07-31 | F105: 0 | G105: CP | H105: Acceptée | I105: =IF(OR(G105="Convention",H105="Refusée"),0,IF(H105="Annulée",-(NETWORKDAYS.INTL(C105,E105,1,JFERIES)-D105-F105),NETWORKDAYS.INTL(C105,E105,1,JFERIES)-D105-F105)) -> 3 | J105: 2013/07
A106: HAUTEBRANC Alexis | B106: 2013-07-01 | C106: 2013-08-01 | D106: 0 | E106: 2013-08-09 | F106: 0 | G106: CP | H106: Acceptée | I106: =IF(OR(G106="Convention",H106="Refusée"),0,IF(H106="Annulée",-(NETWORKDAYS.INTL(C106,E106,1,JFERIES)-D106-F106),NETWORKDAYS.INTL(C106,E106,1,JFERIES)-D106-F106)) -> 7 | J106: 2013/08
A107: HAUTEBRANC Alexis | B107: 2013-07-01 | C107: 2013-08-14 | D107: 0 | E107: 2013-08-16 | F107: 0 | G107: CP | H107: Acceptée | I107: =IF(OR(G107="Convention",H107="Refusée"),0,IF(H107="Annulée",-(NETWORKDAYS.INTL(C107,E107,1,JFERIES)-D107-F107),NETWORKDAYS.INTL(C107,E107,1,JFERIES)-D107-F107)) -> 2 | J107: 2013/08
A108: BELBEY Dounia | B108: 2013-07-01 | C108: 2013-07-02 | D108: 0 | E108: 2013-07-02 | F108: 0.5 | G108: RTT | H108: Acceptée | I108: =IF(OR(G108="Convention",H108="Refusée"),0,IF(H108="Annulée",-(NETWORKDAYS.INTL(C108,E108,1,JFERIES)-D108-F108),NETWORKDAYS.INTL(C108,E108,1,JFERIES)-D108-F108)) -> 0.5 | J108: 2013/07
A109: DEREPPE Bruno | B109: 2013-04-16 | C109: 2013-09-02 | D109: 0 | E109: 2013-09-06 | F109: 0 | G109: CP | H109: Acceptée | I109: =IF(OR(G109="Convention",H109="Refusée"),0,IF(H109="Annulée",-(NETWORKDAYS.INTL(C109,E109,1,JFERIES)-D109-F109),NETWORKDAYS.INTL(C109,E109,1,JFERIES)-D109-F109)) -> 5 | J109: 2013/09
A110: COUTANT Jean Paul | B110: 2013-07-01 | C110: 2013-08-12 | D110: 0 | E110: 2013-08-31 | F110: 0 | G110: CP | H110: Acceptée | I110: =IF(OR(G110="Convention",H110="Refusée"),0,IF(H110="Annulée",-(NETWORKDAYS.INTL(C110,E110,1,JFERIES)-D110-F110),NETWORKDAYS.INTL(C110,E110,1,JFERIES)-D110-F110)) -> 14 | J110: 2013/08
A111: COUTANT Jean Paul | B111: 2013-07-01 | C111: 2013-09-01 | D111: 0 | E111: 2013-09-02 | F111: 0 | G111: CP | H111: Acceptée | I111: =IF(OR(G111="Convention",H111="Refusée"),0,IF(H111="Annulée",-(NETWORKDAYS.INTL(C111,E111,1,JFERIES)-D111-F111),NETWORKDAYS.INTL(C111,E111,1,JFERIES)-D111-F111)) -> 1 | J111: 2013/09
A112: LAZZARO Fabien | B112: 2013-07-01 | C112: 2013-07-26 | D112: 0 | E112: 2013-07-31 | F112: 0 | G112: CP | H112: Acceptée | I112: =IF(OR(G112="Convention",H112="Refusée"),0,IF(H112="Annulée",-(NETWORKDAYS.INTL(C112,E112,1,JFERIES)-D112-F112),NETWORKDAYS.INTL(C112,E112,1,JFERIES)-D112-F112)) -> 4 | J112: 2013/07
A113: LAZZARO Fabien | B113: 2013-07-01 | C113: 2013-08-01 | D113: 0 | E113: 2013-08-09 | F113: 0 | G113: CP | H113: Acceptée | I113: =IF(OR(G113="Convention",H113="Refusée"),0,IF(H113="Annulée",-(NETWORKDAYS.INTL(C113,E113,1,JFERIES)-D113-F113),NETWORKDAYS.INTL(C113,E113,1,JFERIES)-D113-F113)) -> 7 | J113: 2013/08
A114: LAZZARO Fabien | B114: 2013-07-01 | C114: 2013-09-02 | D114: 0 | E114: 2013-09-09 | F114: 0 | G114: CP | H114: Acceptée | I114: =IF(OR(G114="Convention",H114="Refusée"),0,IF(H114="Annulée",-(NETWORKDAYS.INTL(C114,E114,1,JFERIES)-D114-F114),NETWORKDAYS.INTL(C114,E114,1,JFERIES)-D114-F114)) -> 6 | J114: 2013/09
A115: GIRAUDON Alain | B115: 2013-07-01 | C115: 2013-08-05 | D115: 0 | E115: 2013-08-31 | F115: 0 | G115: CP | H115: Acceptée | I115: =IF(OR(G115="Convention",H115="Refusée"),0,IF(H115="Annulée",-(NETWORKDAYS.INTL(C115,E115,1,JFERIES)-D115-F115),NETWORKDAYS.INTL(C115,E115,1,JFERIES)-D115-F115)) -> 19 | J115: 2013/08
A116: LIOGIER Serge | B116: 2013-07-01 | C116: 2013-07-29 | D116: 0 | E116: 2013-07-31 | F116: 0 | G116: CP | H116: Acceptée | I116: =IF(OR(G116="Convention",H116="Refusée"),0,IF(H116="Annulée",-(NETWORKDAYS.INTL(C116,E116,1,JFERIES)-D116-F116),NETWORKDAYS.INTL(C116,E116,1,JFERIES)-D116-F116)) -> 3 | J116: 2013/07
A117: LIOGIER Serge | B117: 2013-07-01 | C117: 2013-08-01 | D117: 0 | E117: 2013-08-19 | F117: 0 | G117: CP | H117: Acceptée | I117: =IF(OR(G117="Convention",H117="Refusée"),0,IF(H117="Annulée",-(NETWORKDAYS.INTL(C117,E117,1,JFERIES)-D117-F117),NETWORKDAYS.INTL(C117,E117,1,JFERIES)-D117-F117)) -> 12 | J117: 2013/08
A118: BELBEY Dounia | B118: 2013-07-01 | C118: 2013-08-08 | D118: 0 | E118: 2013-08-31 | F118: 0 | G118: CP | H118: Acceptée | I118: =IF(OR(G118="Convention",H118="Refusée"),0,IF(H118="Annulée",-(NETWORKDAYS.INTL(C118,E118,1,JFERIES)-D118-F118),NETWORKDAYS.INTL(C118,E118,1,JFERIES)-D118-F118)) -> 16 | J118: 2013/08
A119: GUERIN Viviane | B119: 2013-07-01 | C119: 2013-08-12 | D119: 0 | E119: 2013-08-31 | F119: 0 | G119: CP | H119: Acceptée | I119: =IF(OR(G119="Convention",H119="Refusée"),0,IF(H119="Annulée",-(NETWORKDAYS.INTL(C119,E119,1,JFERIES)-D119-F119),NETWORKDAYS.INTL(C119,E119,1,JFERIES)-D119-F119)) -> 14 | J119: 2013/08
A120: GUIOT Fabien | B120: 2013-06-12 | C120: 2013-06-14 | D120: 0 | E120: 2013-06-17 | F120: 0 | G120: CP | H120: Acceptée | I120: =IF(OR(G120="Convention",H120="Refusée"),0,IF(H120="Annulée",-(NETWORKDAYS.INTL(C120,E120,1,JFERIES)-D120-F120),NETWORKDAYS.INTL(C120,E120,1,JFERIES)-D120-F120)) -> 2 | J120: 2013/06
A121: GUIOT Fabien | B121: 2013-07-01 | C121: 2013-08-05 | D121: 0 | E121: 2013-08-23 | F121: 0 | G121: CP | H121: Acceptée | I121: =IF(OR(G121="Convention",H121="Refusée"),0,IF(H121="Annulée",-(NETWORKDAYS.INTL(C121,E121,1,JFERIES)-D121-F121),NETWORKDAYS.INTL(C121,E121,1,JFERIES)-D121-F121)) -> 14 | J121: 2013/08
A122: HAUTEBRANC Alexis | B122: 2013-07-01 | C122: 2013-08-26 | D122: 0 | E122: 2013-08-31 | F122: 0 | G122: CP | H122: Acceptée | I122: =IF(OR(G122="Convention",H122="Refusée"),0,IF(H122="Annulée",-(NETWORKDAYS.INTL(C122,E122,1,JFERIES)-D122-F122),NETWORKDAYS.INTL(C122,E122,1,JFERIES)-D122-F122)) -> 5 | J122: 2013/08
A123: HAUTEBRANC Alexis | B123: 2013-07-01 | C123: 2013-09-01 | D123: 0 | E123: 2013-09-03 | F123: 0 | G123: CP | H123: Acceptée | I123: =IF(OR(G123="Convention",H123="Refusée"),0,IF(H123="Annulée",-(NETWORKDAYS.INTL(C123,E123,1,JFERIES)-D123-F123),NETWORKDAYS.INTL(C123,E123,1,JFERIES)-D123-F123)) -> 2 | J123: 2013/09
A124: VAUTRAIN Franck | B124: 2013-07-01 | C124: 2013-08-01 | D124: 0 | E124: 2013-08-23 | F124: 0 | G124: CP | H124: Acceptée | I124: =IF(OR(G124="Convention",H124="Refusée"),0,IF(H124="Annulée",-(NETWORKDAYS.INTL(C124,E124,1,JFERIES)-D124-F124),NETWORKDAYS.INTL(C124,E124,1,JFERIES)-D124-F124)) -> 16 | J124: 2013/08
A125: RUBIO Isabel | B125: 2013-06-30 | C125: 2013-06-07 | D125: 0 | E125: 2013-06-07 | F125: 0 | G125: CP | H125: Acceptée | I125: =IF(OR(G125="Convention",H125="Refusée"),0,IF(H125="Annulée",-(NETWORKDAYS.INTL(C125,E125,1,JFERIES)-D125-F125),NETWORKDAYS.INTL(C125,E125,1,JFERIES)-D125-F125)) -> 1 | J125: 2013/06
A126: RUBIO Isabel | B126: 2013-06-30 | C126: 2013-06-18 | D126: 0 | E126: 2013-06-18 | F126: 0.5 | G126: CP | H126: Acceptée | I126: =IF(OR(G126="Convention",H126="Refusée"),0,IF(H126="Annulée",-(NETWORKDAYS.INTL(C126,E126,1,JFERIES)-D126-F126),NETWORKDAYS.INTL(C126,E126,1,JFERIES)-D126-F126)) -> 0.5 | J126: 2013/06
A127: RUBIO Isabel | B127: 2013-07-01 | C127: 2013-08-02 | D127: 0 | E127: 2013-08-23 | F127: 0 | G127: CP | H127: Acceptée | I127: =IF(OR(G127="Convention",H127="Refusée"),0,IF(H127="Annulée",-(NETWORKDAYS.INTL(C127,E127,1,JFERIES)-D127-F127),NETWORKDAYS.INTL(C127,E127,1,JFERIES)-D127-F127)) -> 15 | J127: 2013/08
A128: DREZET Olivier | B128: 2013-07-03 | C128: 2013-07-12 | D128: 0 | E128: 2013-07-12 | F128: 0 | G128: CP | H128: Acceptée | I128: =IF(OR(G128="Convention",H128="Refusée"),0,IF(H128="Annulée",-(NETWORKDAYS.INTL(C128,E128,1,JFERIES)-D128-F128),NETWORKDAYS.INTL(C128,E128,1,JFERIES)-D128-F128)) -> 1 | J128: 2013/07
A129: SIODMAK Eric | B129: 2013-07-05 | C129: 2013-07-11 | D129: 0 | E129: 2013-07-11 | F129: 0 | G129: RTT | H129: Acceptée | I129: =IF(OR(G129="Convention",H129="Refusée"),0,IF(H129="Annulée",-(NETWORKDAYS.INTL(C129,E129,1,JFERIES)-D129-F129),NETWORKDAYS.INTL(C129,E129,1,JFERIES)-D129-F129)) -> 1 | J129: 2013/07
A130: HAUTCLOCQ Claude | B130: 2013-07-11 | C130: 2013-07-11 | D130: 0 | E130: 2013-07-11 | F130: 0 | G130: RTT | H130: Acceptée | I130: =IF(OR(G130="Convention",H130="Refusée"),0,IF(H130="Annulée",-(NETWORKDAYS.INTL(C130,E130,1,JFERIES)-D130-F130),NETWORKDAYS.INTL(C130,E130,1,JFERIES)-D130-F130)) -> 1 | J130: 2013/07
A131: DREZET Olivier | B131: 2013-07-23 | C131: 2013-07-26 | D131: 0 | E131: 2013-07-26 | F131: 0 | G131: CP | H131: Acceptée | I131: =IF(OR(G131="Convention",H131="Refusée"),0,IF(H131="Annulée",-(NETWORKDAYS.INTL(C131,E131,1,JFERIES)-D131-F131),NETWORKDAYS.INTL(C131,E131,1,JFERIES)-D131-F131)) -> 1 | J131: 2013/07
A132: PONS Olivier | B132: 2013-07-23 | C132: 2013-07-26 | D132: 0 | E132: 2013-07-26 | F132: 0 | G132: CP | H132: Acceptée | I132: =IF(OR(G132="Convention",H132="Refusée"),0,IF(H132="Annulée",-(NETWORKDAYS.INTL(C132,E132,1,JFERIES)-D132-F132),NETWORKDAYS.INTL(C132,E132,1,JFERIES)-D132-F132)) -> 1 | J132: 2013/07
A133: LAHAYE Laure | B133: 2013-06-24 | C133: 2013-06-24 | D133: 0 | E133: 2013-06-24 | F133: 0 | G133: CP | H133: Acceptée | I133: =IF(OR(G133="Convention",H133="Refusée"),0,IF(H133="Annulée",-(NETWORKDAYS.INTL(C133,E133,1,JFERIES)-D133-F133),NETWORKDAYS.INTL(C133,E133,1,JFERIES)-D133-F133)) -> 1 | J133: 2013/06
A134: TAQUET Alain | B134: 2013-07-26 | C134: 2013-07-31 | D134: 0 | E134: 2013-07-31 | F134: 0 | G134: RTT | H134: Acceptée | I134: =IF(OR(G134="Convention",H134="Refusée"),0,IF(H134="Annulée",-(NETWORKDAYS.INTL(C134,E134,1,JFERIES)-D134-F134),NETWORKDAYS.INTL(C134,E134,1,JFERIES)-D134-F134)) -> 1 | J134: 2013/07
A135: DREZET Olivier | B135: 2013-07-31 | C135: 2013-09-02 | D135: 0 | E135: 2013-09-04 | F135: 0 | G135: CP | H135: Acceptée | I135: =IF(OR(G135="Convention",H135="Refusée"),0,IF(H135="Annulée",-(NETWORKDAYS.INTL(C135,E135,1,JFERIES)-D135-F135),NETWORKDAYS.INTL(C135,E135,1,JFERIES)-D135-F135)) -> 3 | J135: 2013/09
A136: POMMERELL Patrick | B136: 2013-08-01 | C136: 2013-08-19 | D136: 0 | E136: 2013-08-23 | F136: 0 | G136: CP | H136: Acceptée | I136: =IF(OR(G136="Convention",H136="Refusée"),0,IF(H136="Annulée",-(NETWORKDAYS.INTL(C136,E136,1,JFERIES)-D136-F136),NETWORKDAYS.INTL(C136,E136,1,JFERIES)-D136-F136)) -> 5 | J136: 2013/08
A137: KADEM Christophe | B137: 2013-09-02 | C137: 2013-10-21 | D137: 0 | E137: 2013-10-21 | F137: 0 | G137: RTT | H137: Acceptée | I137: =IF(OR(G137="Convention",H137="Refusée"),0,IF(H137="Annulée",-(NETWORKDAYS.INTL(C137,E137,1,JFERIES)-D137-F137),NETWORKDAYS.INTL(C137,E137,1,JFERIES)-D137-F137)) -> 1 | J137: 2013/10
A138: KADEM Christophe | B138: 2013-09-02 | C138: 2013-10-22 | D138: 0 | E138: 2013-10-22 | F138: 0 | G138: CP | H138: Acceptée | I138: =IF(OR(G138="Convention",H138="Refusée"),0,IF(H138="Annulée",-(NETWORKDAYS.INTL(C138,E138,1,JFERIES)-D138-F138),NETWORKDAYS.INTL(C138,E138,1,JFERIES)-D138-F138)) -> 1 | J138: 2013/10
A139: DREZET Olivier | B139: 2013-09-05 | C139: 2013-11-08 | D139: 0 | E139: 2013-11-08 | F139: 0 | G139: CP | H139: Acceptée | I139: =IF(OR(G139="Convention",H139="Refusée"),0,IF(H139="Annulée",-(NETWORKDAYS.INTL(C139,E139,1,JFERIES)-D139-F139),NETWORKDAYS.INTL(C139,E139,1,JFERIES)-D139-F139)) -> 1 | J139: 2013/11
A140: BEARZATTO Giovanni | B140: 2013-09-09 | C140: 2013-09-10 | D140: 0 | E140: 2013-09-10 | F140: 0 | G140: RTT | H140: Acceptée | I140: =IF(OR(G140="Convention",H140="Refusée"),0,IF(H140="Annulée",-(NETWORKDAYS.INTL(C140,E140,1,JFERIES)-D140-F140),NETWORKDAYS.INTL(C140,E140,1,JFERIES)-D140-F140)) -> 1 | J140: 2013/09
A141: HAUTEBRANC Alexis | B141: 2013-09-10 | C141: 2013-10-04 | D141: 0 | E141: 2013-10-04 | F141: 0 | G141: RTT | H141: Acceptée | I141: =IF(OR(G141="Convention",H141="Refusée"),0,IF(H141="Annulée",-(NETWORKDAYS.INTL(C141,E141,1,JFERIES)-D141-F141),NETWORKDAYS.INTL(C141,E141,1,JFERIES)-D141-F141)) -> 1 | J141: 2013/10
A142: PONS Olivier | B142: 2013-08-20 | C142: 2013-11-13 | D142: 0 | E142: 2013-11-23 | F142: 0 | G142: CP | H142: Refusée | I142: =IF(OR(G142="Convention",H142="Refusée"),0,IF(H142="Annulée",-(NETWORKDAYS.INTL(C142,E142,1,JFERIES)-D142-F142),NETWORKDAYS.INTL(C142,E142,1,JFERIES)-D142-F142)) -> 0 | J142: 2013/11 | K142: semaines qui suivent BATIMAT !
A143: PONS Olivier | B143: 2013-09-19 | C143: 2013-09-23 | D143: 0 | E143: 2013-09-23 | F143: 0 | G143: RTT | H143: Acceptée | I143: =IF(OR(G143="Convention",H143="Refusée"),0,IF(H143="Annulée",-(NETWORKDAYS.INTL(C143,E143,1,JFERIES)-D143-F143),NETWORKDAYS.INTL(C143,E143,1,JFERIES)-D143-F143)) -> 1 | J143: 2013/09
A144: DEREPPE Bruno | B144: 2013-09-19 | C144: 2013-11-15 | D144: 0.5 | E144: 2013-11-15 | F144: 0 | G144: RTT | H144: Acceptée | I144: =IF(OR(G144="Convention",H144="Refusée"),0,IF(H144="Annulée",-(NETWORKDAYS.INTL(C144,E144,1,JFERIES)-D144-F144),NETWORKDAYS.INTL(C144,E144,1,JFERIES)-D144-F144)) -> 0.5 | J144: 2013/11
A145: POMMERELL Patrick | B145: 2013-09-13 | C145: 2013-09-25 | D145: 0 | E145: 2013-09-25 | F145: 0 | G145: RTT | H145: Acceptée | I145: =IF(OR(G145="Convention",H145="Refusée"),0,IF(H145="Annulée",-(NETWORKDAYS.INTL(C145,E145,1,JFERIES)-D145-F145),NETWORKDAYS.INTL(C145,E145,1,JFERIES)-D145-F145)) -> 1 | J145: 2013/09
A146: GUIOT Fabien | B146: 2013-09-18 | C146: 2013-09-19 | D146: 0 | E146: 2013-09-19 | F146: 0 | G146: RTT | H146: Acceptée | I146: =IF(OR(G146="Convention",H146="Refusée"),0,IF(H146="Annulée",-(NETWORKDAYS.INTL(C146,E146,1,JFERIES)-D146-F146),NETWORKDAYS.INTL(C146,E146,1,JFERIES)-D146-F146)) -> 1 | J146: 2013/09
A147: GUIOT Fabien | B147: 2013-09-18 | C147: 2013-09-20 | D147: 0 | E147: 2013-09-20 | F147: 0 | G147: CP | H147: Acceptée | I147: =IF(OR(G147="Convention",H147="Refusée"),0,IF(H147="Annulée",-(NETWORKDAYS.INTL(C147,E147,1,JFERIES)-D147-F147),NETWORKDAYS.INTL(C147,E147,1,JFERIES)-D147-F147)) -> 1 | J147: 2013/09
A148: DREZET Olivier | B148: 2013-09-27 | C148: 2013-09-27 | D148: 0 | E148: 2013-09-27 | F148: 0 | G148: RTT | H148: Acceptée | I148: =IF(OR(G148="Convention",H148="Refusée"),0,IF(H148="Annulée",-(NETWORKDAYS.INTL(C148,E148,1,JFERIES)-D148-F148),NETWORKDAYS.INTL(C148,E148,1,JFERIES)-D148-F148)) -> 1 | J148: 2013/09
A149: BEARZATTO Giovanni | B149: 2013-09-27 | C149: 2013-09-30 | D149: 0 | E149: 2013-09-30 | F149: 0.5 | G149: RTT | H149: Acceptée | I149: =IF(OR(G149="Convention",H149="Refusée"),0,IF(H149="Annulée",-(NETWORKDAYS.INTL(C149,E149,1,JFERIES)-D149-F149),NETWORKDAYS.INTL(C149,E149,1,JFERIES)-D149-F149)) -> 0.5 | J149: 2013/09
A150: HEMLER Christelle | B150: 2013-10-01 | C150: 2013-10-16 | D150: 0 | E150: 2013-10-16 | F150: 0 | G150: RTT | H150: Acceptée | I150: =IF(OR(G150="Convention",H150="Refusée"),0,IF(H150="Annulée",-(NETWORKDAYS.INTL(C150,E150,1,JFERIES)-D150-F150),NETWORKDAYS.INTL(C150,E150,1,JFERIES)-D150-F150)) -> 1 | J150: 2013/10
A151: GUINOT Nathalie | B151: 2013-10-01 | C151: 2013-09-27 | D151: 0 | E151: 2013-09-27 | F151: 0 | G151: RTT | H151: Acceptée | I151: =IF(OR(G151="Convention",H151="Refusée"),0,IF(H151="Annulée",-(NETWORKDAYS.INTL(C151,E151,1,JFERIES)-D151-F151),NETWORKDAYS.INTL(C151,E151,1,JFERIES)-D151-F151)) -> 1 | J151: 2013/09
A152: POMMERELL Patrick | B152: 2013-10-01 | C152: 2013-10-02 | D152: 0.5 | E152: 2013-10-02 | F152: 0 | G152: RTT | H152: Acceptée | I152: =IF(OR(G152="Convention",H152="Refusée"),0,IF(H152="Annulée",-(NETWORKDAYS.INTL(C152,E152,1,JFERIES)-D152-F152),NETWORKDAYS.INTL(C152,E152,1,JFERIES)-D152-F152)) -> 0.5 | J152: 2013/10
A153: POMMERELL Patrick | B153: 2013-10-07 | C153: 2013-10-07 | D153: 0.5 | E153: 2013-10-07 | F153: 0 | G153: RTT | H153: Acceptée | I153: =IF(OR(G153="Convention",H153="Refusée"),0,IF(H153="Annulée",-(NETWORKDAYS.INTL(C153,E153,1,JFERIES)-D153-F153),NETWORKDAYS.INTL(C153,E153,1,JFERIES)-D153-F153)) -> 0.5 | J153: 2013/10
A154: HAUTCLOCQ Claude | B154: 2013-10-07 | C154: 2013-10-29 | D154: 0 | E154: 2013-10-29 | F154: 0 | G154: RTT | H154: Acceptée | I154: =IF(OR(G154="Convention",H154="Refusée"),0,IF(H154="Annulée",-(NETWORKDAYS.INTL(C154,E154,1,JFERIES)-D154-F154),NETWORKDAYS.INTL(C154,E154,1,JFERIES)-D154-F154)) -> 1 | J154: 2013/10
A155: HAUTCLOCQ Claude | B155: 2013-10-07 | C155: 2013-10-22 | D155: 0 | E155: 2013-10-22 | F155: 0 | G155: RTT | H155: Acceptée | I155: =IF(OR(G155="Convention",H155="Refusée"),0,IF(H155="Annulée",-(NETWORKDAYS.INTL(C155,E155,1,JFERIES)-D155-F155),NETWORKDAYS.INTL(C155,E155,1,JFERIES)-D155-F155)) -> 1 | J155: 2013/10
A156: TAQUET Alain | B156: 2013-10-07 | C156: 2013-10-24 | D156: 0 | E156: 2013-10-25 | F156: 0 | G156: RTT | H156: Acceptée | I156: =IF(OR(G156="Convention",H156="Refusée"),0,IF(H156="Annulée",-(NETWORKDAYS.INTL(C156,E156,1,JFERIES)-D156-F156),NETWORKDAYS.INTL(C156,E156,1,JFERIES)-D156-F156)) -> 2 | J156: 2013/10
A157: GUIOT Fabien | B157: 2013-02-01 | C157: 2013-02-15 | D157: 0 | E157: 2013-02-15 | F157: 0 | G157: RTT | H157: Acceptée | I157: =IF(OR(G157="Convention",H157="Refusée"),0,IF(H157="Annulée",-(NETWORKDAYS.INTL(C157,E157,1,JFERIES)-D157-F157),NETWORKDAYS.INTL(C157,E157,1,JFERIES)-D157-F157)) -> 1 | J157: 2013/02 | K157: date à préciser - info avant ce programme
A158: GUIOT Fabien | B158: 2013-10-14 | C158: 2013-10-15 | D158: 0 | E158: 2013-10-16 | F158: 0 | G158: RTT | H158: Acceptée | I158: =IF(OR(G158="Convention",H158="Refusée"),0,IF(H158="Annulée",-(NETWORKDAYS.INTL(C158,E158,1,JFERIES)-D158-F158),NETWORKDAYS.INTL(C158,E158,1,JFERIES)-D158-F158)) -> 2 | J158: 2013/10
A159: HAUTCLOCQ Claude | B159: 2013-10-09 | C159: 2013-10-24 | D159: 0 | E159: 2013-10-25 | F159: 0 | G159: CP | H159: Acceptée | I159: =IF(OR(G159="Convention",H159="Refusée"),0,IF(H159="Annulée",-(NETWORKDAYS.INTL(C159,E159,1,JFERIES)-D159-F159),NETWORKDAYS.INTL(C159,E159,1,JFERIES)-D159-F159)) -> 2 | J159: 2013/10
A160: COUTANT Jean Paul | B160: 2013-10-14 | C160: 2013-10-16 | D160: 0 | E160: 2013-10-16 | F160: 0 | G160: RTT | H160: Acceptée | I160: =IF(OR(G160="Convention",H160="Refusée"),0,IF(H160="Annulée",-(NETWORKDAYS.INTL(C160,E160,1,JFERIES)-D160-F160),NETWORKDAYS.INTL(C160,E160,1,JFERIES)-D160-F160)) -> 1 | J160: 2013/10
A161: LOCATELLI Bruno | B161: 2013-10-21 | C161: 2013-10-25 | D161: 0 | E161: 2013-10-25 | F161: 0.5 | G161: RTT | H161: Acceptée | I161: =IF(OR(G161="Convention",H161="Refusée"),0,IF(H161="Annulée",-(NETWORKDAYS.INTL(C161,E161,1,JFERIES)-D161-F161),NETWORKDAYS.INTL(C161,E161,1,JFERIES)-D161-F161)) -> 0.5 | J161: 2013/10
A162: CHEVALIER Yohan | B162: 2013-10-18 | C162: 2013-11-04 | D162: 0 | E162: 2013-11-04 | F162: 0 | G162: CP | H162: Acceptée | I162: =IF(OR(G162="Convention",H162="Refusée"),0,IF(H162="Annulée",-(NETWORKDAYS.INTL(C162,E162,1,JFERIES)-D162-F162),NETWORKDAYS.INTL(C162,E162,1,JFERIES)-D162-F162)) -> 1 | J162: 2013/11
A163: HAUTCLOCQ Claude | B163: 2013-10-18 | C163: 2013-10-28 | D163: 0 | E163: 2013-10-28 | F163: 0 | G163: CP | H163: Acceptée | I163: =IF(OR(G163="Convention",H163="Refusée"),0,IF(H163="Annulée",-(NETWORKDAYS.INTL(C163,E163,1,JFERIES)-D163-F163),NETWORKDAYS.INTL(C163,E163,1,JFERIES)-D163-F163)) -> 1 | J163: 2013/10
A164: LIOGIER Serge | B164: 2013-10-02 | C164: 2013-10-31 | D164: 0 | E164: 2013-10-31 | F164: 0 | G164: RTT | H164: Acceptée | I164: =IF(OR(G164="Convention",H164="Refusée"),0,IF(H164="Annulée",-(NETWORKDAYS.INTL(C164,E164,1,JFERIES)-D164-F164),NETWORKDAYS.INTL(C164,E164,1,JFERIES)-D164-F164)) -> 1 | J164: 2013/10
A165: LOCATELLI Bruno | B165: 2013-10-14 | C165: 2013-10-16 | D165: 0.5 | E165: 2013-10-16 | F165: 0 | G165: RTT | H165: Acceptée | I165: =IF(OR(G165="Convention",H165="Refusée"),0,IF(H165="Annulée",-(NETWORKDAYS.INTL(C165,E165,1,JFERIES)-D165-F165),NETWORKDAYS.INTL(C165,E165,1,JFERIES)-D165-F165)) -> 0.5 | J165: 2013/10
A166: DREVON Alain | B166: 2013-10-14 | C166: 2013-10-31 | D166: 0 | E166: 2013-10-31 | F166: 0 | G166: RTT | H166: Acceptée | I166: =IF(OR(G166="Convention",H166="Refusée"),0,IF(H166="Annulée",-(NETWORKDAYS.INTL(C166,E166,1,JFERIES)-D166-F166),NETWORKDAYS.INTL(C166,E166,1,JFERIES)-D166-F166)) -> 1 | J166: 2013/10
A167: LEDANT Charles | B167: 2013-10-07 | C167: 2013-10-31 | D167: 0 | E167: 2013-10-31 | F167: 0 | G167: RTT | H167: Acceptée | I167: =IF(OR(G167="Convention",H167="Refusée"),0,IF(H167="Annulée",-(NETWORKDAYS.INTL(C167,E167,1,JFERIES)-D167-F167),NETWORKDAYS.INTL(C167,E167,1,JFERIES)-D167-F167)) -> 1 | J167: 2013/10
A168: GIRAUDON Alain | B168: 2013-10-25 | C168: 2013-10-31 | D168: 0 | E168: 2013-10-31 | F168: 0 | G168: RTT | H168: Acceptée | I168: =IF(OR(G168="Convention",H168="Refusée"),0,IF(H168="Annulée",-(NETWORKDAYS.INTL(C168,E168,1,JFERIES)-D168-F168),NETWORKDAYS.INTL(C168,E168,1,JFERIES)-D168-F168)) -> 1 | J168: 2013/10
A169: GUINOT Nathalie | B169: 2013-10-24 | C169: 2013-10-24 | D169: 0 | E169: 2013-10-24 | F169: 0.5 | G169: RTT | H169: Acceptée | I169: =IF(OR(G169="Convention",H169="Refusée"),0,IF(H169="Annulée",-(NETWORKDAYS.INTL(C169,E169,1,JFERIES)-D169-F169),NETWORKDAYS.INTL(C169,E169,1,JFERIES)-D169-F169)) -> 0.5 | J169: 2013/10
A170: HEMLER Christelle | B170: 2013-10-28 | C170: 2013-11-13 | D170: 0 | E170: 2013-11-13 | F170: 0 | G170: RTT | H170: Acceptée | I170: =IF(OR(G170="Convention",H170="Refusée"),0,IF(H170="Annulée",-(NETWORKDAYS.INTL(C170,E170,1,JFERIES)-D170-F170),NETWORKDAYS.INTL(C170,E170,1,JFERIES)-D170-F170)) -> 1 | J170: 2013/11
A171: POMMERELL Patrick | B171: 2013-10-28 | C171: 2013-10-29 | D171: 0 | E171: 2013-10-29 | F171: 0.5 | G171: RTT | H171: Acceptée | I171: =IF(OR(G171="Convention",H171="Refusée"),0,IF(H171="Annulée",-(NETWORKDAYS.INTL(C171,E171,1,JFERIES)-D171-F171),NETWORKDAYS.INTL(C171,E171,1,JFERIES)-D171-F171)) -> 0.5 | J171: 2013/10
A172: LOCATELLI Bruno | B172: 2013-10-23 | C172: 2013-11-22 | D172: 0 | E172: 2013-11-22 | F172: 0 | G172: RTT | H172: Acceptée | I172: =IF(OR(G172="Convention",H172="Refusée"),0,IF(H172="Annulée",-(NETWORKDAYS.INTL(C172,E172,1,JFERIES)-D172-F172),NETWORKDAYS.INTL(C172,E172,1,JFERIES)-D172-F172)) -> 1 | J172: 2013/11
A173: LOCATELLI Bruno | B173: 2013-10-23 | C173: 2013-12-12 | D173: 0.5 | E173: 2013-12-12 | F173: 0 | G173: RTT | H173: Acceptée | I173: =IF(OR(G173="Convention",H173="Refusée"),0,IF(H173="Annulée",-(NETWORKDAYS.INTL(C173,E173,1,JFERIES)-D173-F173),NETWORKDAYS.INTL(C173,E173,1,JFERIES)-D173-F173)) -> 0.5 | J173: 2013/12
A174: DREVON Alain | B174: 2013-10-25 | C174: 2013-12-06 | D174: 0 | E174: 2013-12-06 | F174: 0.5 | G174: RTT | H174: Acceptée | I174: =IF(OR(G174="Convention",H174="Refusée"),0,IF(H174="Annulée",-(NETWORKDAYS.INTL(C174,E174,1,JFERIES)-D174-F174),NETWORKDAYS.INTL(C174,E174,1,JFERIES)-D174-F174)) -> 0.5 | J174: 2013/12
A175: DREVON Alain | B175: 2013-10-25 | C175: 2013-11-15 | D175: 0 | E175: 2013-11-15 | F175: 0.5 | G175: RTT | H175: Acceptée | I175: =IF(OR(G175="Convention",H175="Refusée"),0,IF(H175="Annulée",-(NETWORKDAYS.INTL(C175,E175,1,JFERIES)-D175-F175),NETWORKDAYS.INTL(C175,E175,1,JFERIES)-D175-F175)) -> 0.5 | J175: 2013/11
A176: DREVON Alain | B176: 2013-10-25 | C176: 2013-12-20 | D176: 0 | E176: 2013-12-20 | F176: 0.5 | G176: RTT | H176: Acceptée | I176: =IF(OR(G176="Convention",H176="Refusée"),0,IF(H176="Annulée",-(NETWORKDAYS.INTL(C176,E176,1,JFERIES)-D176-F176),NETWORKDAYS.INTL(C176,E176,1,JFERIES)-D176-F176)) -> 0.5 | J176: 2013/12
A177: LOYER Michel | B177: 2013-10-12 | C177: 2013-10-22 | D177: 0 | E177: 2013-10-25 | F177: 0 | G177: RTT | H177: Acceptée | I177: =IF(OR(G177="Convention",H177="Refusée"),0,IF(H177="Annulée",-(NETWORKDAYS.INTL(C177,E177,1,JFERIES)-D177-F177),NETWORKDAYS.INTL(C177,E177,1,JFERIES)-D177-F177)) -> 4 | J177: 2013/10
A178: LOYER Michel | B178: 2013-10-12 | C178: 2013-10-28 | D178: 0 | E178: 2013-10-29 | F178: 0 | G178: CP | H178: Acceptée | I178: =IF(OR(G178="Convention",H178="Refusée"),0,IF(H178="Annulée",-(NETWORKDAYS.INTL(C178,E178,1,JFERIES)-D178-F178),NETWORKDAYS.INTL(C178,E178,1,JFERIES)-D178-F178)) -> 2 | J178: 2013/10
A179: SIODMAK Eric | B179: 2013-10-28 | C179: 2013-10-30 | D179: 0 | E179: 2013-10-30 | F179: 0 | G179: RTT | H179: Acceptée | I179: =IF(OR(G179="Convention",H179="Refusée"),0,IF(H179="Annulée",-(NETWORKDAYS.INTL(C179,E179,1,JFERIES)-D179-F179),NETWORKDAYS.INTL(C179,E179,1,JFERIES)-D179-F179)) -> 1 | J179: 2013/10
A180: GUERIN Viviane | B180: 2013-10-01 | C180: 2013-11-08 | D180: 0 | E180: 2013-11-08 | F180: 0 | G180: RTD Recup | H180: Acceptée | I180: =IF(OR(G180="Convention",H180="Refusée"),0,IF(H180="Annulée",-(NETWORKDAYS.INTL(C180,E180,1,JFERIES)-D180-F180),NETWORKDAYS.INTL(C180,E180,1,JFERIES)-D180-F180)) -> 1 | J180: 2013/11
A181: KADEM Christophe | B181: 2013-11-12 | C181: 2013-11-29 | D181: 0 | E181: 2013-11-29 | F181: 0 | G181: RTT | H181: Acceptée | I181: =IF(OR(G181="Convention",H181="Refusée"),0,IF(H181="Annulée",-(NETWORKDAYS.INTL(C181,E181,1,JFERIES)-D181-F181),NETWORKDAYS.INTL(C181,E181,1,JFERIES)-D181-F181)) -> 1 | J181: 2013/11
A182: KADEM Christophe | B182: 2013-11-12 | C182: 2013-12-09 | D182: 0 | E182: 2013-12-09 | F182: 0 | G182: RTT | H182: Acceptée | I182: =IF(OR(G182="Convention",H182="Refusée"),0,IF(H182="Annulée",-(NETWORKDAYS.INTL(C182,E182,1,JFERIES)-D182-F182),NETWORKDAYS.INTL(C182,E182,1,JFERIES)-D182-F182)) -> 1 | J182: 2013/12
A183: GUIOT Fabien | B183: 2013-10-28 | C183: 2013-10-29 | D183: 0 | E183: 2013-10-29 | F183: 0 | G183: CP | H183: Acceptée | I183: =IF(OR(G183="Convention",H183="Refusée"),0,IF(H183="Annulée",-(NETWORKDAYS.INTL(C183,E183,1,JFERIES)-D183-F183),NETWORKDAYS.INTL(C183,E183,1,JFERIES)-D183-F183)) -> 1 | J183: 2013/10
A184: GUIOT Fabien | B184: 2013-10-28 | C184: 2013-10-28 | D184: 0 | E184: 2013-10-28 | F184: 0 | G184: RTT | H184: Acceptée | I184: =IF(OR(G184="Convention",H184="Refusée"),0,IF(H184="Annulée",-(NETWORKDAYS.INTL(C184,E184,1,JFERIES)-D184-F184),NETWORKDAYS.INTL(C184,E184,1,JFERIES)-D184-F184)) -> 1 | J184: 2013/10
A185: GUIOT Fabien | B185: 2013-10-28 | C185: 2013-10-29 | D185: 0 | E185: 2013-10-31 | F185: 0 | G185: Convention | H185: Acceptée | I185: =IF(OR(G185="Convention",H185="Refusée"),0,IF(H185="Annulée",-(NETWORKDAYS.INTL(C185,E185,1,JFERIES)-D185-F185),NETWORKDAYS.INTL(C185,E185,1,JFERIES)-D185-F185)) -> 0 | J185: 2013/10 | K185: décès du père
A186: CHEVALIER Yohan | B186: 2013-11-13 | C186: 2013-12-16 | D186: 0 | E186: 2013-12-16 | F186: 0 | G186: CP | H186: Acceptée | I186: =IF(OR(G186="Convention",H186="Refusée"),0,IF(H186="Annulée",-(NETWORKDAYS.INTL(C186,E186,1,JFERIES)-D186-F186),NETWORKDAYS.INTL(C186,E186,1,JFERIES)-D186-F186)) -> 1 | J186: 2013/12
A187: RUBIO Isabel | B187: 2013-09-01 | C187: 2013-09-20 | D187: 0 | E187: 2013-09-23 | F187: 0 | G187: CP | H187: Acceptée | I187: =IF(OR(G187="Convention",H187="Refusée"),0,IF(H187="Annulée",-(NETWORKDAYS.INTL(C187,E187,1,JFERIES)-D187-F187),NETWORKDAYS.INTL(C187,E187,1,JFERIES)-D187-F187)) -> 2 | J187: 2013/09
A188: RUBIO Isabel | B188: 2013-10-01 | C188: 2013-10-25 | D188: 0 | E188: 2013-10-29 | F188: 0 | G188: CP | H188: Acceptée | I188: =IF(OR(G188="Convention",H188="Refusée"),0,IF(H188="Annulée",-(NETWORKDAYS.INTL(C188,E188,1,JFERIES)-D188-F188),NETWORKDAYS.INTL(C188,E188,1,JFERIES)-D188-F188)) -> 3 | J188: 2013/10
A189: GUERIN Viviane | B189: 2013-09-01 | C189: 2013-09-02 | D189: 0 | E189: 2013-09-02 | F189: 0 | G189: RTT | H189: Acceptée | I189: =IF(OR(G189="Convention",H189="Refusée"),0,IF(H189="Annulée",-(NETWORKDAYS.INTL(C189,E189,1,JFERIES)-D189-F189),NETWORKDAYS.INTL(C189,E189,1,JFERIES)-D189-F189)) -> 1 | J189: 2013/09
A190: TAQUET Alain | B190: 2013-01-01 | C190: 2013-01-02 | D190: 0 | E190: 2013-01-02 | F190: 0 | G190: RTT | H190: Acceptée | I190: =IF(OR(G190="Convention",H190="Refusée"),0,IF(H190="Annulée",-(NETWORKDAYS.INTL(C190,E190,1,JFERIES)-D190-F190),NETWORKDAYS.INTL(C190,E190,1,JFERIES)-D190-F190)) -> 1 | J190: 2013/01
A191: COUTANT Jean Paul | B191: 2013-01-01 | C191: 2013-01-02 | D191: 0 | E191: 2013-01-03 | F191: 0 | G191: RTT | H191: Acceptée | I191: =IF(OR(G191="Convention",H191="Refusée"),0,IF(H191="Annulée",-(NETWORKDAYS.INTL(C191,E191,1,JFERIES)-D191-F191),NETWORKDAYS.INTL(C191,E191,1,JFERIES)-D191-F191)) -> 2 | J191: 2013/01
A192: PONS Olivier | B192: 2013-01-01 | C192: 2013-01-11 | D192: 0 | E192: 2013-01-11 | F192: 0 | G192: RTT | H192: Acceptée | I192: =IF(OR(G192="Convention",H192="Refusée"),0,IF(H192="Annulée",-(NETWORKDAYS.INTL(C192,E192,1,JFERIES)-D192-F192),NETWORKDAYS.INTL(C192,E192,1,JFERIES)-D192-F192)) -> 1 | J192: 2013/01
A193: HEMLER Christelle | B193: 2013-01-01 | C193: 2013-01-02 | D193: 0 | E193: 2013-01-02 | F193: 0 | G193: RTT | H193: Acceptée | I193: =IF(OR(G193="Convention",H193="Refusée"),0,IF(H193="Annulée",-(NETWORKDAYS.INTL(C193,E193,1,JFERIES)-D193-F193),NETWORKDAYS.INTL(C193,E193,1,JFERIES)-D193-F193)) -> 1 | J193: 2013/01
A194: PONS Olivier | B194: 2013-01-20 | C194: 2013-01-21 | D194: 0 | E194: 2013-01-21 | F194: 0.5 | G194: RTT | H194: Acceptée | I194: =IF(OR(G194="Convention",H194="Refusée"),0,IF(H194="Annulée",-(NETWORKDAYS.INTL(C194,E194,1,JFERIES)-D194-F194),NETWORKDAYS.INTL(C194,E194,1,JFERIES)-D194-F194)) -> 0.5 | J194: 2013/01
A195: LOCATELLI Bruno | B195: 2013-01-20 | C195: 2013-01-25 | D195: 0 | E195: 2013-01-25 | F195: 0 | G195: RTT | H195: Acceptée | I195: =IF(OR(G195="Convention",H195="Refusée"),0,IF(H195="Annulée",-(NETWORKDAYS.INTL(C195,E195,1,JFERIES)-D195-F195),NETWORKDAYS.INTL(C195,E195,1,JFERIES)-D195-F195)) -> 1 | J195: 2013/01
A196: RUBIO Isabel | B196: 2013-01-18 | C196: 2013-01-18 | D196: 0 | E196: 2013-01-18 | F196: 0.5 | G196: RTT | H196: Acceptée | I196: =IF(OR(G196="Convention",H196="Refusée"),0,IF(H196="Annulée",-(NETWORKDAYS.INTL(C196,E196,1,JFERIES)-D196-F196),NETWORKDAYS.INTL(C196,E196,1,JFERIES)-D196-F196)) -> 0.5 | J196: 2013/01
A197: DREZET Olivier | B197: 2013-02-15 | C197: 2013-02-15 | D197: 0 | E197: 2013-02-15 | F197: 0 | G197: RTT | H197: Acceptée | I197: =IF(OR(G197="Convention",H197="Refusée"),0,IF(H197="Annulée",-(NETWORKDAYS.INTL(C197,E197,1,JFERIES)-D197-F197),NETWORKDAYS.INTL(C197,E197,1,JFERIES)-D197-F197)) -> 1 | J197: 2013/02
A198: BEARZATTO Giovanni | B198: 2013-02-14 | C198: 2013-02-14 | D198: 0 | E198: 2013-02-14 | F198: 0.5 | G198: RTT | H198: Acceptée | I198: =IF(OR(G198="Convention",H198="Refusée"),0,IF(H198="Annulée",-(NETWORKDAYS.INTL(C198,E198,1,JFERIES)-D198-F198),NETWORKDAYS.INTL(C198,E198,1,JFERIES)-D198-F198)) -> 0.5 | J198: 2013/02
A199: VAUTRAIN Franck | B199: 2013-02-01 | C199: 2013-02-01 | D199: 0 | E199: 2013-02-01 | F199: 0.5 | G199: RTT | H199: Acceptée | I199: =IF(OR(G199="Convention",H199="Refusée"),0,IF(H199="Annulée",-(NETWORKDAYS.INTL(C199,E199,1,JFERIES)-D199-F199),NETWORKDAYS.INTL(C199,E199,1,JFERIES)-D199-F199)) -> 0.5 | J199: 2013/02
A200: RUBIO Isabel | B200: 2013-02-01 | C200: 2013-02-01 | D200: 0 | E200: 2013-02-01 | F200: 0.5 | G200: RTT | H200: Acceptée | I200: =IF(OR(G200="Convention",H200="Refusée"),0,IF(H200="Annulée",-(NETWORKDAYS.INTL(C200,E200,1,JFERIES)-D200-F200),NETWORKDAYS.INTL(C200,E200,1,JFERIES)-D200-F200)) -> 0.5 | J200: 2013/02
... 845 more rows

Sheet Personnel
A1: Nombre de jours/mois | B1: 2.08 | G1: CP Période du | H1: =DATE(ANNEE_LSE,6,1) -> 2015-06-01 | I1: au | J1: =DATE(ANNEE_LSE+1,5,31) -> 2016-05-31 | L1: =(H1-F4)/365/5 -> 3.45260274 | O1: RTT Période du | P1: 2015-01-01 | R1: au | S1: 2015-12-31 | Y1: =ARRONDI.AU.MULTIPLE(Personnel!$M4*SOMME(Personnel!$N4:$Z4);0,5) | AC1: 2013-01-01
A2: TOTAUX | H2: =SUBTOTAL(9,Personnel!$H$4:$H$35) -> -1.7 | I2: =SUBTOTAL(9,Personnel!$I$4:$I$35) -> 55 | J2: =SUBTOTAL(9,Personnel!$J$4:$J$35) -> 780.746 | L2: =SUBTOTAL(9,Personnel!$L$4:$L$35) -> 604
A3: Salarié | B3: Sorti | C3: User | D3: Société | E3: Agence | F3: entrée | G3: Coef | H3: Solde N-1 | I3: ancienneté | J3: Acquis N-1 | K3: Acquis N | L3: Pris | M3: RTT | N3: RTT Solde N-1 | O3: Janv | P3: Févr | Q3: Mars | R3: Avril | S3: Mai | T3: Juin | U3: Juillet | V3: Aout | W3: Sept | X3: Oct | Y3: Nov | Z3: Déc | AA3: RTT Droits | AB3: RTT Pris | AC3: RTT Solde
A4: BEARZATTO Giovanni | C4: g.bearzatto | D4: LSE | E4: IDF | F4: 1998-03-01 | G4: 1 | H4: 1.5 | I4: =IF(YEAR(PERSONNEL[[#This Row],[entrée]])=YEAR(CPdeb),0,MIN(4,INT((CPdeb-PERSONNEL[[#This Row],[entrée]])/365/5))) -> 3 | J4: =$H4+$I4+IF($H$1-$F4<=0,0,IF($H$1-$F4>364,NbjCP*12*$G4,CEILING(($H$1-$F4)/30*$G4*NbjCP,0.01))) -> 29.46 | K4: =IF($F4<$H$1,INT((TODAY()-$H$1)/30)*NbjCP*$G4,INT((TODAY()-$F4)/30)*NbjCP*$G4) -> 14.56 | L4: =SUMIFS(Tabsaisies[NB jours],Tabsaisies[Salarié],Personnel!$A4,Tabsaisies[Nature],"CP",Tabsaisies[Statut],"Acceptée",Tabsaisies[Début],">="&$H$1,Tabsaisies[Fin],"<="&$J$1) -> 21 | M4: 1 | N4: 3 | O4: 0.67 | P4: 0.67 | Q4: 0.67 | AA4: =MROUND(Personnel!$M4*SUM(Personnel!$N4:$Z4),0.5) -> 5 | AB4: =SUMIFS(Tabsaisies[NB jours],Tabsaisies[Salarié],Personnel!$A4,Tabsaisies[Nature],"RTT",Tabsaisies[Statut],"Acceptée",Tabsaisies[Début],">="&$P$1) -> 5 | AC4: =PERSONNEL[[#This Row],[RTT Droits]]-PERSONNEL[[#This Row],[RTT Pris]] -> 0
A5: BERTHE Magali | C5: m.berthe | D5: LSE | E5: SUD | F5: 2013-12-09 | G5: 1 | H5: -8 | I5: =IF(YEAR(PERSONNEL[[#This Row],[entrée]])=YEAR(CPdeb),0,MIN(4,INT((CPdeb-PERSONNEL[[#This Row],[entrée]])/365/5))) -> 0 | J5: 16.96 | K5: 14.56 | L5: =SUMIFS(Tabsaisies[NB jours],Tabsaisies[Salarié],Personnel!$A5,Tabsaisies[Nature],"CP",Tabsaisies[Statut],"Acceptée",Tabsaisies[Début],">="&$H$1,Tabsaisies[Fin],"<="&$J$1) -> 16 | M5: 0 | N5: 0 | O5: 0.67 | P5: 0.67 | Q5: 0.67 | AA5: =MROUND(Personnel!$M5*SUM(Personnel!$N5:$Z5),0.5) -> 0 | AB5: =SUMIFS(Tabsaisies[NB jours],Tabsaisies[Salarié],Personnel!$A5,Tabsaisies[Nature],"RTT",Tabsaisies[Statut],"Acceptée",Tabsaisies[Début],">="&$P$1) -> 0 | AC5: =PERSONNEL[[#This Row],[RTT Droits]]-PERSONNEL[[#This Row],[RTT Pris]] -> 0
A6: BABOULIN Marine | C6: m.baboulin | D6: LSE | E6: SUD | F6: 2015-10-22 | G6: 1 | I6: =IF(YEAR(PERSONNEL[[#This Row],[entrée]])=YEAR(CPdeb),0,MIN(4,INT((CPdeb-PERSONNEL[[#This Row],[entrée]])/365/5))) -> 0 | J6: 0 | K6: 6.24 | L6: =SUMIFS(Tabsaisies[NB jours],Tabsaisies[Salarié],Personnel!$A6,Tabsaisies[Nature],"CP",Tabsaisies[Statut],"Acceptée",Tabsaisies[Début],">="&$H$1,Tabsaisies[Fin],"<="&$J$1) -> 0 | M6: 0 | N6: 0 | AA6: =MROUND(Personnel!$M6*SUM(Personnel!$N6:$Z6),0.5) -> 0 | AB6: =SUMIFS(Tabsaisies[NB jours],Tabsaisies[Salarié],Personnel!$A6,Tabsaisies[Nature],"RTT",Tabsaisies[Statut],"Acceptée",Tabsaisies[Début],">="&$P$1) -> 0 | AC6: =PERSONNEL[[#This Row],[RTT Droits]]-PERSONNEL[[#This Row],[RTT Pris]] -> 0
A7: CHEVALIER Yohan | C7: y.chevalier | D7: LSE | E7: SUD | F7: 2014-02-12 | G7: 1 | H7: -8.7 | I7: =IF(YEAR(PERSONNEL[[#This Row],[entrée]])=YEAR(CPdeb),0,MIN(4,INT((CPdeb-PERSONNEL[[#This Row],[entrée]])/365/5))) -> 0 | J7: 16.26 | K7: 14.56 | L7: =SUMIFS(Tabsaisies[NB jours],Tabsaisies[Salarié],Personnel!$A7,Tabsaisies[Nature],"CP",Tabsaisies[Statut],"Acceptée",Tabsaisies[Début],">="&$H$1,Tabsaisies[Fin],"<="&$J$1) -> 21 | M7: 0 | N7: 0 | O7: 0.67 | P7: 0.67 | Q7: 0.67 | AA7: =MROUND(Personnel!$M7*SUM(Personnel!$N7:$Z7),0.5) -> 0 | AB7: =SUMIFS(Tabsaisies[NB jours],Tabsaisies[Salarié],Personnel!$A7,Tabsaisies[Nature],"RTT",Tabsaisies[Statut],"Acceptée",Tabsaisies[Début],">="&$P$1) -> 0 | AC7: =PERSONNEL[[#This Row],[RTT Droits]]-PERSONNEL[[#This Row],[RTT Pris]] -> 0
A8: COUTANT Jean Paul | C8: jp.coutant | D8: LSE | E8: IDF | F8: 1994-01-01 | G8: 1 | H8: 6 | I8: =IF(YEAR(PERSONNEL[[#This Row],[entrée]])=YEAR(CPdeb),0,MIN(4,INT((CPdeb-PERSONNEL[[#This Row],[entrée]])/365/5))) -> 4 | J8: 34.96 | K8: 14.56 | L8: =SUMIFS(Tabsaisies[NB jours],Tabsaisies[Salarié],Personnel!$A8,Tabsaisies[Nature],"CP",Tabsaisies[Statut],"Acceptée",Tabsaisies[Début],">="&$H$1,Tabsaisies[Fin],"<="&$J$1) -> 27.5 | M8: 1 | N8: 2 | O8: 0.67 | P8: 0.67 | Q8: 0.67 | AA8: =MROUND(Personnel!$M8*SUM(Personnel!$N8:$Z8),0.5) -> 4 | AB8: =SUMIFS(Tabsaisies[NB jours],Tabsaisies[Salarié],Personnel!$A8,Tabsaisies[Nature],"RTT",Tabsaisies[Statut],"Acceptée",Tabsaisies[Début],">="&$P$1) -> 4 | AC8: =PERSONNEL[[#This Row],[RTT Droits]]-PERSONNEL[[#This Row],[RTT Pris]] -> 0
A9: DEREPPE Bruno | C9: b.dereppe | D9: LSE | E9: IDF | F9: 1999-05-01 | G9: 1 | H9: 0 | I9: =IF(YEAR(PERSONNEL[[#This Row],[entrée]])=YEAR(CPdeb),0,MIN(4,INT((CPdeb-PERSONNEL[[#This Row],[entrée]])/365/5))) -> 3 | J9: 27.96 | K9: 14.56 | L9: =SUMIFS(Tabsaisies[NB jours],Tabsaisies[Salarié],Personnel!$A9,Tabsaisies[Nature],"CP",Tabsaisies[Statut],"Acceptée",Tabsaisies[Début],">="&$H$1,Tabsaisies[Fin],"<="&$J$1) -> 21 | M9: 1 | N9: 1.5 | O9: 0.67 | P9: 0.67 | Q9: 0.67 | AA9: =MROUND(Personnel!$M9*SUM(Personnel!$N9:$Z9),0.5) -> 3.5 | AB9: =SUMIFS(Tabsaisies[NB jours],Tabsaisies[Salarié],Personnel!$A9,Tabsaisies[Nature],"RTT",Tabsaisies[Statut],"Acceptée",Tabsaisies[Début],">="&$P$1) -> 3 | AC9: =PERSONNEL[[#This Row],[RTT Droits]]-PERSONNEL[[#This Row],[RTT Pris]] -> 0.5
A10: DREVON Alain | C10: a.drevon | D10: LSE | E10: SUD | F10: 1997-01-01 | G10: 1 | H10: 0 | I10: =IF(YEAR(PERSONNEL[[#This Row],[entrée]])=YEAR(CPdeb),0,MIN(4,INT((CPdeb-PERSONNEL[[#This Row],[entrée]])/365/5))) -> 3 | J10: 27.96 | K10: 14.56 | L10: =SUMIFS(Tabsaisies[NB jours],Tabsaisies[Salarié],Personnel!$A10,Tabsaisies[Nature],"CP",Tabsaisies[Statut],"Acceptée",Tabsaisies[Début],">="&$H$1,Tabsaisies[Fin],"<="&$J$1) -> 23.5 | M10: 1 | N10: 2 | O10: 0.67 | P10: 0.67 | Q10: 0.67 | AA10: =MROUND(Personnel!$M10*SUM(Personnel!$N10:$Z10),0.5) -> 4 | AB10: =SUMIFS(Tabsaisies[NB jours],Tabsaisies[Salarié],Personnel!$A10,Tabsaisies[Nature],"RTT",Tabsaisies[Statut],"Acceptée",Tabsaisies[Début],">="&$P$1) -> 4 | AC10: =PERSONNEL[[#This Row],[RTT Droits]]-PERSONNEL[[#This Row],[RTT Pris]] -> 0
A11: DREZET Olivier | C11: olivier.drezet | D11: LSE | E11: IDF | F11: 1995-10-01 | G11: 1 | H11: 3.5 | I11: =IF(YEAR(PERSONNEL[[#This Row],[entrée]])=YEAR(CPdeb),0,MIN(4,INT((CPdeb-PERSONNEL[[#This Row],[entrée]])/365/5))) -> 3 | J11: 31.46 | K11: 14.56 | L11: =SUMIFS(Tabsaisies[NB jours],Tabsaisies[Salarié],Personnel!$A11,Tabsaisies[Nature],"CP",Tabsaisies[Statut],"Acceptée",Tabsaisies[Début],">="&$H$1,Tabsaisies[Fin],"<="&$J$1) -> 26 | M11: 1 | N11: 2 | O11: 0.67 | P11: 0.67 | Q11: 0.67 | AA11: =MROUND(Personnel!$M11*SUM(Personnel!$N11:$Z11),0.5) -> 4 | AB11: =SUMIFS(Tabsaisies[NB jours],Tabsaisies[Salarié],Personnel!$A11,Tabsaisies[Nature],"RTT",Tabsaisies[Statut],"Acceptée",Tabsaisies[Début],">="&$P$1) -> 4 | AC11: =PERSONNEL[[#This Row],[RTT Droits]]-PERSONNEL[[#This Row],[RTT Pris]] -> 0
A12: GIRAUDON Alain | C12: a.giraudon | D12: LSE | E12: IDF | F12: 2008-04-01 | G12: 1 | H12: 0 | I12: =IF(YEAR(PERSONNEL[[#This Row],[entrée]])=YEAR(CPdeb),0,MIN(4,INT((CPdeb-PERSONNEL[[#This Row],[entrée]])/365/5))) -> 1 | J12: 25.96 | K12: 14.56 | L12: =SUMIFS(Tabsaisies[NB jours],Tabsaisies[Salarié],Personnel!$A12,Tabsaisies[Nature],"CP",Tabsaisies[Statut],"Acceptée",Tabsaisies[Début],">="&$H$1,Tabsaisies[Fin],"<="&$J$1) -> 25.5 | M12: 1 | N12: 2.5 | O12: 0.67 | P12: 0.67 | Q12: 0.67 | AA12: =MROUND(Personnel!$M12*SUM(Personnel!$N12:$Z12),0.5) -> 4.5 | AB12: =SUMIFS(Tabsaisies[NB jours],Tabsaisies[Salarié],Personnel!$A12,Tabsaisies[Nature],"RTT",Tabsaisies[Statut],"Acceptée",Tabsaisies[Début],">="&$P$1) -> 4.5 | AC12: =PERSONNEL[[#This Row],[RTT Droits]]-PERSONNEL[[#This Row],[RTT Pris]] -> 0
A13: GUERIN Viviane | C13: v.guerin | D13: LSE | E13: SUD | F13: 2005-03-01 | G13: 1 | H13: 6 | I13: =IF(YEAR(PERSONNEL[[#This Row],[entrée]])=YEAR(CPdeb),0,MIN(4,INT((CPdeb-PERSONNEL[[#This Row],[entrée]])/365/5))) -> 2 | J13: 32.96 | K13: 14.56 | L13: =SUMIFS(Tabsaisies[NB jours],Tabsaisies[Salarié],Personnel!$A13,Tabsaisies[Nature],"CP",Tabsaisies[Statut],"Acceptée",Tabsaisies[Début],">="&$H$1,Tabsaisies[Fin],"<="&$J$1) -> 23 | M13: 1 | N13: 3 | O13: 0.67 | P13: 0.67 | Q13: 0.67 | AA13: =MROUND(Personnel!$M13*SUM(Personnel!$N13:$Z13),0.5) -> 5 | AB13: =SUMIFS(Tabsaisies[NB jours],Tabsaisies[Salarié],Personnel!$A13,Tabsaisies[Nature],"RTT",Tabsaisies[Statut],"Acceptée",Tabsaisies[Début],">="&$P$1) -> 5 | AC13: =PERSONNEL[[#This Row],[RTT Droits]]-PERSONNEL[[#This Row],[RTT Pris]] -> 0
A14: GUINOT Nathalie | C14: n.guinot | D14: LSE | E14: IDF | F14: 2010-09-01 | G14: 1 | H14: 0 | I14: =IF(YEAR(PERSONNEL[[#This Row],[entrée]])=YEAR(CPdeb),0,MIN(4,INT((CPdeb-PERSONNEL[[#This Row],[entrée]])/365/5))) -> 0 | J14: 24.96 | K14: 14.56 | L14: =SUMIFS(Tabsaisies[NB jours],Tabsaisies[Salarié],Personnel!$A14,Tabsaisies[Nature],"CP",Tabsaisies[Statut],"Acceptée",Tabsaisies[Début],">="&$H$1,Tabsaisies[Fin],"<="&$J$1) -> 20 | M14: 1 | N14: 3.5 | O14: 0.67 | P14: 0.67 | Q14: 0.67 | AA14: =MROUND(Personnel!$M14*SUM(Personnel!$N14:$Z14),0.5) -> 5.5 | AB14: =SUMIFS(Tabsaisies[NB jours],Tabsaisies[Salarié],Personnel!$A14,Tabsaisies[Nature],"RTT",Tabsaisies[Statut],"Acceptée",Tabsaisies[Début],">="&$P$1) -> 5.5 | AC14: =PERSONNEL[[#This Row],[RTT Droits]]-PERSONNEL[[#This Row],[RTT Pris]] -> 0
A15: GUIOT Fabien | C15: f.guiot | D15: LSE | E15: IDF | F15: 2010-02-01 | G15: 1 | H15: 0 | I15: =IF(YEAR(PERSONNEL[[#This Row],[entrée]])=YEAR(CPdeb),0,MIN(4,INT((CPdeb-PERSONNEL[[#This Row],[entrée]])/365/5))) -> 1 | J15: 25.96 | K15: 14.56 | L15: =SUMIFS(Tabsaisies[NB jours],Tabsaisies[Salarié],Personnel!$A15,Tabsaisies[Nature],"CP",Tabsaisies[Statut],"Acceptée",Tabsaisies[Début],">="&$H$1,Tabsaisies[Fin],"<="&$J$1) -> 15.5 | M15: 1 | N15: 2 | O15: 0.67 | P15: 0.67 | Q15: 0.67 | AA15: =MROUND(Personnel!$M15*SUM(Personnel!$N15:$Z15),0.5) -> 4 | AB15: =SUMIFS(Tabsaisies[NB jours],Tabsaisies[Salarié],Personnel!$A15,Tabsaisies[Nature],"RTT",Tabsaisies[Statut],"Acceptée",Tabsaisies[Début],">="&$P$1) -> 4 | AC15: =PERSONNEL[[#This Row],[RTT Droits]]-PERSONNEL[[#This Row],[RTT Pris]] -> 0
A16: HAUTEBRANC Alexis | C16: a.hautebranc | D16: LSE | E16: SUD | F16: 2005-06-01 | G16: 1 | H16: 1 | I16: =IF(YEAR(PERSONNEL[[#This Row],[entrée]])=YEAR(CPdeb),0,MIN(4,INT((CPdeb-PERSONNEL[[#This Row],[entrée]])/365/5))) -> 2 | J16: 27.96 | K16: 14.56 | L16: =SUMIFS(Tabsaisies[NB jours],Tabsaisies[Salarié],Personnel!$A16,Tabsaisies[Nature],"CP",Tabsaisies[Statut],"Acceptée",Tabsaisies[Début],">="&$H$1,Tabsaisies[Fin],"<="&$J$1) -> 24 | M16: 1 | N16: 2 | O16: 0.67 | P16: 0.67 | Q16: 0.67 | AA16: =MROUND(Personnel!$M16*SUM(Personnel!$N16:$Z16),0.5) -> 4 | AB16: =SUMIFS(Tabsaisies[NB jours],Tabsaisies[Salarié],Personnel!$A16,Tabsaisies[Nature],"RTT",Tabsaisies[Statut],"Acceptée",Tabsaisies[Début],">="&$P$1) -> 4 | AC16: =PERSONNEL[[#This Row],[RTT Droits]]-PERSONNEL[[#This Row],[RTT Pris]] -> 0
A17: HEMLER Christelle | C17: c.hemler | D17: LSE | E17: IDF | F17: 2008-10-01 | G17: 1 | H17: 0.5 | I17: =IF(YEAR(PERSONNEL[[#This Row],[entrée]])=YEAR(CPdeb),0,MIN(4,INT((CPdeb-PERSONNEL[[#This Row],[entrée]])/365/5))) -> 1 | J17: 26.46 | K17: 14.56 | L17: =SUMIFS(Tabsaisies[NB jours],Tabsaisies[Salarié],Personnel!$A17,Tabsaisies[Nature],"CP",Tabsaisies[Statut],"Acceptée",Tabsaisies[Début],">="&$H$1,Tabsaisies[Fin],"<="&$J$1) -> 20.5 | M17: 1 | N17: 2 | O17: 0.67 | P17: 0.67 | Q17: 0.67 | AA17: =MROUND(Personnel!$M17*SUM(Personnel!$N17:$Z17),0.5) -> 4 | AB17: =SUMIFS(Tabsaisies[NB jours],Tabsaisies[Salarié],Personnel!$A17,Tabsaisies[Nature],"RTT",Tabsaisies[Statut],"Acceptée",Tabsaisies[Début],">="&$P$1) -> 4 | AC17: =PERSONNEL[[#This Row],[RTT Droits]]-PERSONNEL[[#This Row],[RTT Pris]] -> 0
A18: KADEM Christophe | C18: c.kadem | D18: LSE | E18: NO | F18: 2007-11-01 | G18: 1 | H18: 1 | I18: =IF(YEAR(PERSONNEL[[#This Row],[entrée]])=YEAR(CPdeb),0,MIN(4,INT((CPdeb-PERSONNEL[[#This Row],[entrée]])/365/5))) -> 1 | J18: 26.96 | K18: 14.56 | L18: =SUMIFS(Tabsaisies[NB jours],Tabsaisies[Salarié],Personnel!$A18,Tabsaisies[Nature],"CP",Tabsaisies[Statut],"Acceptée",Tabsaisies[Début],">="&$H$1,Tabsaisies[Fin],"<="&$J$1) -> 21 | M18: 1 | N18: 1 | O18: 0.67 | P18: 0.67 | Q18: 0.67 | AA18: =MROUND(Personnel!$M18*SUM(Personnel!$N18:$Z18),0.5) -> 3 | AB18: =SUMIFS(Tabsaisies[NB jours],Tabsaisies[Salarié],Personnel!$A18,Tabsaisies[Nature],"RTT",Tabsaisies[Statut],"Acceptée",Tabsaisies[Début],">="&$P$1) -> 3 | AC18: =PERSONNEL[[#This Row],[RTT Droits]]-PERSONNEL[[#This Row],[RTT Pris]] -> 0
A19: KOSCIELNY Philippe | C19: p.koscielny | D19: LSE | E19: IDF | F19: 2015-07-01 | G19: 1 | I19: =IF(YEAR(PERSONNEL[[#This Row],[entrée]])=YEAR(CPdeb),0,MIN(4,INT((CPdeb-PERSONNEL[[#This Row],[entrée]])/365/5))) -> 0 | J19: 0 | K19: 12.48 | L19: =SUMIFS(Tabsaisies[NB jours],Tabsaisies[Salarié],Personnel!$A19,Tabsaisies[Nature],"CP",Tabsaisies[Statut],"Acceptée",Tabsaisies[Début],">="&$H$1,Tabsaisies[Fin],"<="&$J$1) -> 7 | AA19: =MROUND(Personnel!$M19*SUM(Personnel!$N19:$Z19),0.5) -> 0 | AB19: =SUMIFS(Tabsaisies[NB jours],Tabsaisies[Salarié],Personnel!$A19,Tabsaisies[Nature],"RTT",Tabsaisies[Statut],"Acceptée",Tabsaisies[Début],">="&$P$1) -> 0 | AC19: =PERSONNEL[[#This Row],[RTT Droits]]-PERSONNEL[[#This Row],[RTT Pris]] -> 0
A20: LANGE Sébastien | C20: s.lange | D20: LSE | E20: SUD | F20: 2014-11-17 | G20: 1 | H20: -1.5 | I20: =IF(YEAR(PERSONNEL[[#This Row],[entrée]])=YEAR(CPdeb),0,MIN(4,INT((CPdeb-PERSONNEL[[#This Row],[entrée]])/365/5))) -> 0 | J20: 12.09 | K20: 14.56 | L20: =SUMIFS(Tabsaisies[NB jours],Tabsaisies[Salarié],Personnel!$A20,Tabsaisies[Nature],"CP",Tabsaisies[Statut],"Acceptée",Tabsaisies[Début],">="&$H$1,Tabsaisies[Fin],"<="&$J$1) -> 15.5 | M20: 0 | O20: 0.67 | P20: 0.67 | Q20: 0.67 | AA20: =MROUND(Personnel!$M20*SUM(Personnel!$N20:$Z20),0.5) -> 0 | AB20: =SUMIFS(Tabsaisies[NB jours],Tabsaisies[Salarié],Personnel!$A20,Tabsaisies[Nature],"RTT",Tabsaisies[Statut],"Acceptée",Tabsaisies[Début],">="&$P$1) -> 0 | AC20: =PERSONNEL[[#This Row],[RTT Droits]]-PERSONNEL[[#This Row],[RTT Pris]] -> 0
A21: LEDANT Charles | C21: c.ledant | D21: LSE | E21: SUD | F21: 1983-11-01 | G21: 1 | H21: 0 | I21: =IF(YEAR(PERSONNEL[[#This Row],[entrée]])=YEAR(CPdeb),0,MIN(4,INT((CPdeb-PERSONNEL[[#This Row],[entrée]])/365/5))) -> 4 | J21: 28.96 | K21: 14.56 | L21: =SUMIFS(Tabsaisies[NB jours],Tabsaisies[Salarié],Personnel!$A21,Tabsaisies[Nature],"CP",Tabsaisies[Statut],"Acceptée",Tabsaisies[Début],">="&$H$1,Tabsaisies[Fin],"<="&$J$1) -> 25 | M21: 1 | N21: 2 | O21: 0.67 | P21: 0.67 | Q21: 0.67 | AA21: =MROUND(Personnel!$M21*SUM(Personnel!$N21:$Z21),0.5) -> 4 | AB21: =SUMIFS(Tabsaisies[NB jours],Tabsaisies[Salarié],Personnel!$A21,Tabsaisies[Nature],"RTT",Tabsaisies[Statut],"Acceptée",Tabsaisies[Début],">="&$P$1) -> 4 | AC21: =PERSONNEL[[#This Row],[RTT Droits]]-PERSONNEL[[#This Row],[RTT Pris]] -> 0
A22: LOCATELLI Bruno | C22: b.locatelli | D22: LSE | E22: SUD | F22: 1989-08-01 | G22: 1 | H22: 0 | I22: =IF(YEAR(PERSONNEL[[#This Row],[entrée]])=YEAR(CPdeb),0,MIN(4,INT((CPdeb-PERSONNEL[[#This Row],[entrée]])/365/5))) -> 4 | J22: 28.96 | K22: 14.56 | L22: =SUMIFS(Tabsaisies[NB jours],Tabsaisies[Salarié],Personnel!$A22,Tabsaisies[Nature],"CP",Tabsaisies[Statut],"Acceptée",Tabsaisies[Début],">="&$H$1,Tabsaisies[Fin],"<="&$J$1) -> 29.5 | M22: 1 | N22: 3 | O22: 0.67 | P22: 0.67 | Q22: 0.67 | AA22: =MROUND(Personnel!$M22*SUM(Personnel!$N22:$Z22),0.5) -> 5 | AB22: =SUMIFS(Tabsaisies[NB jours],Tabsaisies[Salarié],Personnel!$A22,Tabsaisies[Nature],"RTT",Tabsaisies[Statut],"Acceptée",Tabsaisies[Début],">="&$P$1) -> 5 | AC22: =PERSONNEL[[#This Row],[RTT Droits]]-PERSONNEL[[#This Row],[RTT Pris]] -> 0
A23: LOYER Michel | C23: m.loyer | D23: LSE | E23: NO | F23: 2006-12-01 | G23: 1 | H23: 0 | I23: =IF(YEAR(PERSONNEL[[#This Row],[entrée]])=YEAR(CPdeb),0,MIN(4,INT((CPdeb-PERSONNEL[[#This Row],[entrée]])/365/5))) -> 1 | J23: 25.96 | K23: 14.56 | L23: =SUMIFS(Tabsaisies[NB jours],Tabsaisies[Salarié],Personnel!$A23,Tabsaisies[Nature],"CP",Tabsaisies[Statut],"Acceptée",Tabsaisies[Début],">="&$H$1,Tabsaisies[Fin],"<="&$J$1) -> 24 | M23: 1 | N23: 2 | O23: 0.67 | P23: 0.67 | Q23: 0.67 | AA23: =MROUND(Personnel!$M23*SUM(Personnel!$N23:$Z23),0.5) -> 4 | AB23: =SUMIFS(Tabsaisies[NB jours],Tabsaisies[Salarié],Personnel!$A23,Tabsaisies[Nature],"RTT",Tabsaisies[Statut],"Acceptée",Tabsaisies[Début],">="&$P$1) -> 4 | AC23: =PERSONNEL[[#This Row],[RTT Droits]]-PERSONNEL[[#This Row],[RTT Pris]] -> 0
A24: MARAIS Bernard | C24: b.marais | D24: OBI | E24: SUD | F24: 1985-08-01 | G24: 1 | H24: -2 | I24: =IF(YEAR(PERSONNEL[[#This Row],[entrée]])=YEAR(CPdeb),0,MIN(4,INT((CPdeb-PERSONNEL[[#This Row],[entrée]])/365/5))) -> 4 | J24: 26.96 | K24: 14.56 | L24: =SUMIFS(Tabsaisies[NB jours],Tabsaisies[Salarié],Personnel!$A24,Tabsaisies[Nature],"CP",Tabsaisies[Statut],"Acceptée",Tabsaisies[Début],">="&$H$1,Tabsaisies[Fin],"<="&$J$1) -> 27 | M24: 0 | N24: 0 | O24: 0.67 | P24: 0.67 | Q24: 0.67 | AA24: =MROUND(Personnel!$M24*SUM(Personnel!$N24:$Z24),0.5) -> 0 | AB24: =SUMIFS(Tabsaisies[NB jours],Tabsaisies[Salarié],Personnel!$A24,Tabsaisies[Nature],"RTT",Tabsaisies[Statut],"Acceptée",Tabsaisies[Début],">="&$P$1) -> 0 | AC24: =PERSONNEL[[#This Row],[RTT Droits]]-PERSONNEL[[#This Row],[RTT Pris]] -> 0
A25: MINAKIAN Mathilde | C25: m.minakian | D25: LSE | E25: SUD | F25: 2013-10-18 | G25: 1 | H25: -5.5 | I25: =IF(YEAR(PERSONNEL[[#This Row],[entrée]])=YEAR(CPdeb),0,MIN(4,INT((CPdeb-PERSONNEL[[#This Row],[entrée]])/365/5))) -> 0 | J25: 19.46 | K25: 14.56 | L25: =SUMIFS(Tabsaisies[NB jours],Tabsaisies[Salarié],Personnel!$A25,Tabsaisies[Nature],"CP",Tabsaisies[Statut],"Acceptée",Tabsaisies[Début],">="&$H$1,Tabsaisies[Fin],"<="&$J$1) -> 23.5 | O25: 0.67 | P25: 0.67 | Q25: 0.67 | AA25: =MROUND(Personnel!$M25*SUM(Personnel!$N25:$Z25),0.5) -> 0 | AB25: =SUMIFS(Tabsaisies[NB jours],Tabsaisies[Salarié],Personnel!$A25,Tabsaisies[Nature],"RTT",Tabsaisies[Statut],"Acceptée",Tabsaisies[Début],">="&$P$1) -> 0 | AC25: =PERSONNEL[[#This Row],[RTT Droits]]-PERSONNEL[[#This Row],[RTT Pris]] -> 0
A26: MARZOUK Sami | C26: s.marzouk | D26: LSE | E26: IDF | F26: 1981-10-01 | G26: 1 | H26: 0 | I26: =IF(YEAR(PERSONNEL[[#This Row],[entrée]])=YEAR(CPdeb),0,MIN(4,INT((CPdeb-PERSONNEL[[#This Row],[entrée]])/365/5))) -> 4 | J26: 28.96 | K26: 14.56 | L26: =SUMIFS(Tabsaisies[NB jours],Tabsaisies[Salarié],Personnel!$A26,Tabsaisies[Nature],"CP",Tabsaisies[Statut],"Acceptée",Tabsaisies[Début],">="&$H$1,Tabsaisies[Fin],"<="&$J$1) -> 22 | M26: 1 | N26: 1 | O26: 0.67 | P26: 0.67 | Q26: 0.67 | AA26: =MROUND(Personnel!$M26*SUM(Personnel!$N26:$Z26),0.5) -> 3 | AB26: =SUMIFS(Tabsaisies[NB jours],Tabsaisies[Salarié],Personnel!$A26,Tabsaisies[Nature],"RTT",Tabsaisies[Statut],"Acceptée",Tabsaisies[Début],">="&$P$1) -> 2.5 | AC26: =PERSONNEL[[#This Row],[RTT Droits]]-PERSONNEL[[#This Row],[RTT Pris]] -> 0.5
A27: PLONQUET Christian | C27: p.plonquet | D27: LSE | E27: NO | F27: 2012-10-01 | G27: =1*3/5 -> 0.6 | H27: -6.5 | I27: =IF(YEAR(PERSONNEL[[#This Row],[entrée]])=YEAR(CPdeb),0,MIN(4,INT((CPdeb-PERSONNEL[[#This Row],[entrée]])/365/5))) -> 0 | J27: 8.476 | K27: 8.736 | L27: =SUMIFS(Tabsaisies[NB jours],Tabsaisies[Salarié],Personnel!$A27,Tabsaisies[Nature],"CP",Tabsaisies[Statut],"Acceptée",Tabsaisies[Début],">="&$H$1,Tabsaisies[Fin],"<="&$J$1) -> 0 | M27: 0 | N27: 0 | O27: 0.67 | P27: 0.67 | Q27: 0.67 | AA27: =MROUND(Personnel!$M27*SUM(Personnel!$N27:$Z27),0.5) -> 0 | AB27: =SUMIFS(Tabsaisies[NB jours],Tabsaisies[Salarié],Personnel!$A27,Tabsaisies[Nature],"RTT",Tabsaisies[Statut],"Acceptée",Tabsaisies[Début],">="&$P$1) -> 0 | AC27: =PERSONNEL[[#This Row],[RTT Droits]]-PERSONNEL[[#This Row],[RTT Pris]] -> 0
A28: POMMERELL Patrick | C28: p.pommerell | D28: LSE | E28: IDF | F28: 1989-10-01 | G28: 1 | H28: 7.5 | I28: =IF(YEAR(PERSONNEL[[#This Row],[entrée]])=YEAR(CPdeb),0,MIN(4,INT((CPdeb-PERSONNEL[[#This Row],[entrée]])/365/5))) -> 4 | J28: 36.46 | K28: 14.56 | L28: =SUMIFS(Tabsaisies[NB jours],Tabsaisies[Salarié],Personnel!$A28,Tabsaisies[Nature],"CP",Tabsaisies[Statut],"Acceptée",Tabsaisies[Début],">="&$H$1,Tabsaisies[Fin],"<="&$J$1) -> 26 | M28: 1 | N28: 2.5 | O28: 0.67 | P28: 0.67 | Q28: 0.67 | AA28: =MROUND(Personnel!$M28*SUM(Personnel!$N28:$Z28),0.5) -> 4.5 | AB28: =SUMIFS(Tabsaisies[NB jours],Tabsaisies[Salarié],Personnel!$A28,Tabsaisies[Nature],"RTT",Tabsaisies[Statut],"Acceptée",Tabsaisies[Début],">="&$P$1) -> 4.5 | AC28: =PERSONNEL[[#This Row],[RTT Droits]]-PERSONNEL[[#This Row],[RTT Pris]] -> 0
A29: PONS Olivier | C29: o.pons | D29: LSE | E29: SUD | F29: 2010-09-01 | G29: 1 | H29: 1 | I29: =IF(YEAR(PERSONNEL[[#This Row],[entrée]])=YEAR(CPdeb),0,MIN(4,INT((CPdeb-PERSONNEL[[#This Row],[entrée]])/365/5))) -> 0 | J29: 25.96 | K29: 14.56 | L29: =SUMIFS(Tabsaisies[NB jours],Tabsaisies[Salarié],Personnel!$A29,Tabsaisies[Nature],"CP",Tabsaisies[Statut],"Acceptée",Tabsaisies[Début],">="&$H$1,Tabsaisies[Fin],"<="&$J$1) -> 17.5 | M29: 1 | N29: 4 | O29: 0.67 | P29: 0.67 | Q29: 0.67 | AA29: =MROUND(Personnel!$M29*SUM(Personnel!$N29:$Z29),0.5) -> 6 | AB29: =SUMIFS(Tabsaisies[NB jours],Tabsaisies[Salarié],Personnel!$A29,Tabsaisies[Nature],"RTT",Tabsaisies[Statut],"Acceptée",Tabsaisies[Début],">="&$P$1) -> 5 | AC29: =PERSONNEL[[#This Row],[RTT Droits]]-PERSONNEL[[#This Row],[RTT Pris]] -> 1
A30: ROBIN Kevin | C30: k.robin | D30: LSE | E30: IDF | F30: 2012-11-01 | G30: 1 | I30: =IF(YEAR(PERSONNEL[[#This Row],[entrée]])=YEAR(CPdeb),0,MIN(4,INT((CPdeb-PERSONNEL[[#This Row],[entrée]])/365/5))) -> 0 | J30: 24.96 | K30: 14.56 | L30: =SUMIFS(Tabsaisies[NB jours],Tabsaisies[Salarié],Personnel!$A30,Tabsaisies[Nature],"CP",Tabsaisies[Statut],"Acceptée",Tabsaisies[Début],">="&$H$1,Tabsaisies[Fin],"<="&$J$1) -> 0 | N30: 0 | O30: 0.67 | P30: 0.67 | Q30: 0.67 | AA30: =MROUND(Personnel!$M30*SUM(Personnel!$N30:$Z30),0.5) -> 0 | AB30: =SUMIFS(Tabsaisies[NB jours],Tabsaisies[Salarié],Personnel!$A30,Tabsaisies[Nature],"RTT",Tabsaisies[Statut],"Acceptée",Tabsaisies[Début],">="&$P$1) -> 0 | AC30: =PERSONNEL[[#This Row],[RTT Droits]]-PERSONNEL[[#This Row],[RTT Pris]] -> 0
A31: RUBIO Isabel | C31: i.rubio | D31: SOCAGI | E31: IDF | F31: 2008-01-01 | G31: 1 | I31: =IF(YEAR(PERSONNEL[[#This Row],[entrée]])=YEAR(CPdeb),0,MIN(4,INT((CPdeb-PERSONNEL[[#This Row],[entrée]])/365/5))) -> 1 | J31: 25.96 | K31: 14.56 | L31: =SUMIFS(Tabsaisies[NB jours],Tabsaisies[Salarié],Personnel!$A31,Tabsaisies[Nature],"CP",Tabsaisies[Statut],"Acceptée",Tabsaisies[Début],">="&$H$1,Tabsaisies[Fin],"<="&$J$1) -> 0 | M31: 1 | N31: 0 | O31: 0.67 | P31: 0.67 | Q31: 0.67 | AA31: =MROUND(Personnel!$M31*SUM(Personnel!$N31:$Z31),0.5) -> 2 | AB31: =SUMIFS(Tabsaisies[NB jours],Tabsaisies[Salarié],Personnel!$A31,Tabsaisies[Nature],"RTT",Tabsaisies[Statut],"Acceptée",Tabsaisies[Début],">="&$P$1) -> 0 | AC31: =PERSONNEL[[#This Row],[RTT Droits]]-PERSONNEL[[#This Row],[RTT Pris]] -> 2
A32: SANTUCCI Lionel | C32: l.santucci | D32: LSE | E32: SUD | F32: 1992-05-01 | G32: 1 | H32: 0 | I32: =IF(YEAR(PERSONNEL[[#This Row],[entrée]])=YEAR(CPdeb),0,MIN(4,INT((CPdeb-PERSONNEL[[#This Row],[entrée]])/365/5))) -> 4 | J32: 28.96 | K32: 14.56 | L32: =SUMIFS(Tabsaisies[NB jours],Tabsaisies[Salarié],Personnel!$A32,Tabsaisies[Nature],"CP",Tabsaisies[Statut],"Acceptée",Tabsaisies[Début],">="&$H$1,Tabsaisies[Fin],"<="&$J$1) -> 23 | M32: 1 | N32: 2 | O32: 0.67 | P32: 0.67 | Q32: 0.67 | AA32: =MROUND(Personnel!$M32*SUM(Personnel!$N32:$Z32),0.5) -> 4 | AB32: =SUMIFS(Tabsaisies[NB jours],Tabsaisies[Salarié],Personnel!$A32,Tabsaisies[Nature],"RTT",Tabsaisies[Statut],"Acceptée",Tabsaisies[Début],">="&$P$1) -> 4 | AC32: =PERSONNEL[[#This Row],[RTT Droits]]-PERSONNEL[[#This Row],[RTT Pris]] -> 0
A33: SOUCHET Alain | C33: a.souchet | D33: LSE | E33: IDF | F33: 1991-01-01 | G33: 1 | H33: 1 | I33: =IF(YEAR(PERSONNEL[[#This Row],[entrée]])=YEAR(CPdeb),0,MIN(4,INT((CPdeb-PERSONNEL[[#This Row],[entrée]])/365/5))) -> 4 | J33: 29.96 | K33: 14.56 | L33: =SUMIFS(Tabsaisies[NB jours],Tabsaisies[Salarié],Personnel!$A33,Tabsaisies[Nature],"CP",Tabsaisies[Statut],"Acceptée",Tabsaisies[Début],">="&$H$1,Tabsaisies[Fin],"<="&$J$1) -> 17 | M33: 1 | N33: 1.5 | O33: 0.67 | P33: 0.67 | Q33: 0.67 | AA33: =MROUND(Personnel!$M33*SUM(Personnel!$N33:$Z33),0.5) -> 3.5 | AB33: =SUMIFS(Tabsaisies[NB jours],Tabsaisies[Salarié],Personnel!$A33,Tabsaisies[Nature],"RTT",Tabsaisies[Statut],"Acceptée",Tabsaisies[Début],">="&$P$1) -> 2 | AC33: =PERSONNEL[[#This Row],[RTT Droits]]-PERSONNEL[[#This Row],[RTT Pris]] -> 1.5
A34: TAQUET Alain | C34: a.taquet | D34: LSE | E34: NO | F34: 2006-12-01 | G34: 1 | H34: 1.5 | I34: =IF(YEAR(PERSONNEL[[#This Row],[entrée]])=YEAR(CPdeb),0,MIN(4,INT((CPdeb-PERSONNEL[[#This Row],[entrée]])/365/5))) -> 1 | J34: 27.46 | K34: 14.56 | L34: =SUMIFS(Tabsaisies[NB jours],Tabsaisies[Salarié],Personnel!$A34,Tabsaisies[Nature],"CP",Tabsaisies[Statut],"Acceptée",Tabsaisies[Début],">="&$H$1,Tabsaisies[Fin],"<="&$J$1) -> 22.5 | M34: 1 | N34: 4 | O34: 0.67 | P34: 0.67 | Q34: 0.67 | AA34: =MROUND(Personnel!$M34*SUM(Personnel!$N34:$Z34),0.5) -> 6 | AB34: =SUMIFS(Tabsaisies[NB jours],Tabsaisies[Salarié],Personnel!$A34,Tabsaisies[Nature],"RTT",Tabsaisies[Statut],"Acceptée",Tabsaisies[Début],">="&$P$1) -> 6 | AC34: =PERSONNEL[[#This Row],[RTT Droits]]-PERSONNEL[[#This Row],[RTT Pris]] -> 0
A35: VAUTRAIN Franck | C35: f.vautrain | D35: LSE | E35: SUD | F35: 2011-06-01 | G35: 1 | H35: 0 | I35: =IF(YEAR(PERSONNEL[[#This Row],[entrée]])=YEAR(CPdeb),0,MIN(4,INT((CPdeb-PERSONNEL[[#This Row],[entrée]])/365/5))) -> 0 | J35: 24.96 | K35: 14.56 | L35: =SUMIFS(Tabsaisies[NB jours],Tabsaisies[Salarié],Personnel!$A35,Tabsaisies[Nature],"CP",Tabsaisies[Statut],"Acceptée",Tabsaisies[Début],">="&$H$1,Tabsaisies[Fin],"<="&$J$1) -> 19 | M35: 1 | N35: 4 | O35: 0.67 | P35: 0.67 | Q35: 0.67 | AA35: =MROUND(Personnel!$M35*SUM(Personnel!$N35:$Z35),0.5) -> 6 | AB35: =SUMIFS(Tabsaisies[NB jours],Tabsaisies[Salarié],Personnel!$A35,Tabsaisies[Nature],"RTT",Tabsaisies[Statut],"Acceptée",Tabsaisies[Début],">="&$P$1) -> 5 | AC35: =PERSONNEL[[#This Row],[RTT Droits]]-PERSONNEL[[#This Row],[RTT Pris]] -> 1

Sheet Feuil1
A4: Nature | B4: CP
A6: Somme de NB jours | B6: mois
B7: 2014 | I7: 2015 | N7: Total général
A8: Étiquettes de lignes | B8: juin | C8: juil | D8: août | E8: sept | F8: oct | G8: nov | H8: déc | I8: janv | J8: févr | K8: mars | L8: avr | M8: mai
A9: BEARZATTO Giovanni | C9: 1 | D9: 10 | E9: 6 | J9: 6 | K9: 2 | M9: 1 | N9: 26
A10: BERTHE Magali | D10: 9 | G10: 1.5 | I10: 1 | M10: 1 | N10: 12.5
A11: CHEVALIER Yohan | C11: 4 | D11: 5 | H11: 0 | M11: 2 | N11: 11
A12: COUTANT Jean Paul | B12: 1 | D12: 15 | K12: 1 | L12: 5 | M12: 1 | N12: 23
A13: DEREPPE Bruno | C13: 4 | D13: 10 | E13: 5 | K13: 5 | M13: 4 | N13: 28
A14: DREVON Alain | C14: 4 | D14: 6 | E14: 5 | J14: 5 | M14: 5.5 | N14: 25.5
A15: DREZET Olivier | B15: 1 | D15: 16 | E15: 4 | G15: 1 | H15: 1 | L15: 4 | M15: 1 | N15: 28
A16: GIRAUDON Alain | B16: 1 | D16: 20 | K16: 5 | N16: 26
A17: GUERIN Viviane | B17: 1 | C17: 1 | D17: 17 | E17: 1 | H17: 0 | M17: 5 | N17: 25
A18: GUINOT Nathalie | D18: 15 | J18: 5 | L18: 2 | M18: 3 | N18: 25
A19: GUIOT Fabien | D19: 15 | H19: 1 | L19: 4 | M19: 5 | N19: 25
A20: HAUTEBRANC Alexis | C20: 4 | D20: 6 | E20: 5 | F20: 1 | H20: 0.5 | K20: 2.5 | M20: 6 | N20: 25
A21: HEMLER Christelle | C21: 4 | D21: 6 | E21: 5 | H21: 0.5 | K21: 2 | L21: 2 | M21: 6 | N21: 25.5
A22: KADEM Christophe | D22: 15 | H22: 1 | K22: 5 | M22: 4.5 | N22: 25.5
A23: LANGE Sébastien | I23: 1 | M23: 0.5 | N23: 1.5
A24: LAZZARO Fabien | C24: 4 | D24: 11 | N24: 15
A25: LEDANT Charles | D25: 17 | G25: 1 | I25: 2 | K25: 3 | L25: 1 | M25: 5 | N25: 29
A26: LOCATELLI Bruno | D26: 5 | E26: 11 | K26: 5 | L26: 1 | M26: 5 | N26: 27
A27: LOYER Michel | B27: 1 | C27: 7 | D27: 10 | E27: 1 | F27: 1 | H27: 1 | K27: 2 | M27: 3 | N27: 26
A28: MARAIS Bernard | D28: 9 | E28: 10 | H28: 1 | I28: 1 | J28: 5 | M28: 1 | N28: 27
A29: MARZOUK Sami | D29: 20 | H29: 1 | L29: 8 | N29: 29
A30: MINAKIAN Mathilde | C30: 1 | D30: 15 | G30: 1 | I30: 1 | N30: 18
A31: PLONQUET Christian | D31: 17 | E31: 5 | F31: 0 | G31: 2 | N31: 24
A32: POMMERELL Patrick | D32: 15 | J32: 2 | L32: 4 | M32: 0 | N32: 21
A33: PONS Olivier | C33: 5 | D33: 10 | J33: 7 | N33: 22
A34: ROBIN Kevin | C34: 1 | D34: 15 | G34: 1 | H34: 1.5 | I34: 1 | J34: 2 | K34: 1 | L34: 1.5 | N34: 24
A35: SANTUCCI Lionel | D35: 15 | E35: 1 | H35: 1 | K35: 2 | L35: 3 | M35: 8 | N35: 30
A36: SIODMAK Eric | D36: 14 | E36: 2 | H36: 1 | J36: 5 | K36: 0 | L36: 4 | N36: 26
A37: SOUCHET Alain | D37: 20 | L37: 2.5 | M37: 7 | N37: 29.5
A38: TAQUET Alain | B38: 2 | D38: 14 | E38: 1 | K38: 4 | M38: 5.5 | N38: 26.5
A39: VAUTRAIN Franck | D39: 15 | H39: 0 | L39: 5 | M39: 5 | N39: 25
A40: Total général | B40: 7 | C40: 40 | D40: 387 | E40: 62 | F40: 2 | G40: 7.5 | H40: 10.5 | I40: 7 | J40: 37 | K40: 39.5 | L40: 47 | M40: 85 | N40: 731.5
